{"text_format":"1","workbook":"xlsx","n_sheets":3,"sheets":["DN-1","ZDN-1","ZDN-2"],"not_rendered":{"charts":0,"images":15,"macros":1,"external_links":0,"defined_names":3,"comments":0,"pivot_tables":0},"unopened":[],"bounds":{"document_bytes":16777216,"sheet_cells":100000,"rows_first":2000,"rows_last":500,"rows_between":2000,"halvings":0,"cell_chars":16384,"cell_head_chars":4096},"cells_cut":0,"cells_raw":0,"read":"whole","date_system":"1900"}

{"sheet":"DN-1","index":0,"n_rows":295,"n_cols":35,"rows_kept":295,"cut":false,"hidden":false,"merged":[[52,2,52,29],[8,2,8,29],[12,2,12,29],[1,1,1,30],[2,2,2,29],[3,2,3,29],[4,2,4,29],[0,0,0,31],[69,1,69,30],[27,2,27,29],[28,2,28,29],[35,2,35,29],[40,2,40,29],[76,16,76,19],[7,2,7,29],[5,2,5,5],[5,6,5,10],[5,11,5,16],[6,2,6,3],[6,4,6,16],[5,17,5,29],[6,17,6,29],[49,2,49,29],[61,3,61,8],[61,9,61,20],[62,3,62,10],[61,21,61,29],[100,2,100,29],[106,2,106,29],[78,20,78,26],[78,27,78,29],[103,20,103,26],[102,16,102,19],[59,2,59,29],[66,2,66,29],[68,2,68,29],[70,2,70,29],[60,3,60,8],[60,9,60,20],[60,21,60,29],[62,11,62,25],[62,26,62,27],[62,28,62,29],[107,2,107,3],[107,4,107,29],[102,27,102,29],[103,27,103,29],[102,20,102,26],[102,3,102,15],[103,3,103,15],[104,3,104,15],[103,16,103,19],[139,16,139,19],[140,16,140,19],[141,16,142,19],[141,20,142,26],[127,2,127,4],[127,8,127,29],[127,5,127,7],[128,2,128,29],[130,2,130,29],[131,2,131,29],[203,20,203,26],[202,27,202,29],[203,27,203,29],[203,16,203,19],[161,2,161,29],[175,2,175,29],[181,2,181,29],[234,2,234,29],[223,3,223,9],[224,3,224,9],[225,3,225,9],[226,3,226,9],[227,3,227,9],[228,3,228,9],[232,3,232,9],[230,18,230,23],[229,3,229,9],[235,2,235,29],[239,2,239,29],[240,2,240,29],[254,2,254,29],[237,18,237,29],[238,18,238,29],[237,3,237,17],[238,3,238,17],[243,3,243,17],[243,18,243,29],[249,2,249,29],[258,3,258,17],[258,18,258,29],[246,2,246,4],[246,5,246,7],[246,8,246,29],[248,1,248,30],[257,3,257,17],[257,18,257,29],[255,2,255,29],[295,2,295,29],[13,2,13,4],[13,5,13,29],[15,2,15,4],[15,5,15,29],[16,2,16,4],[16,5,16,29],[17,2,17,4],[293,2,293,29],[289,2,289,29],[29,3,29,29],[21,2,21,4],[21,5,21,29],[17,5,17,29],[18,2,18,4],[18,5,18,29],[19,2,19,4],[19,5,19,29],[20,2,20,4],[20,5,20,29],[76,20,76,26],[76,27,76,29],[77,16,77,19],[77,20,77,26],[75,2,75,29],[71,2,71,29],[72,2,72,29],[73,2,73,29],[74,2,74,29],[76,2,78,15],[77,27,77,29],[119,16,119,19],[119,20,119,26],[119,27,119,29],[113,3,113,29],[114,3,114,29],[117,16,117,19],[117,20,117,26],[117,27,117,29],[101,2,101,3],[118,16,118,19],[118,20,118,26],[118,27,118,29],[120,20,120,26],[120,16,120,19],[78,16,78,19],[101,4,101,29],[112,2,112,29],[145,7,145,15],[146,7,146,15],[141,3,141,15],[142,3,142,15],[144,7,144,15],[120,27,120,29],[138,3,139,6],[138,7,139,15],[138,20,139,29],[140,3,140,15],[147,3,147,15],[148,3,148,15],[143,16,143,19],[144,16,144,19],[145,16,145,19],[146,16,146,19],[147,16,147,19],[143,3,143,6],[144,3,146,6],[143,7,143,15],[149,3,149,15],[150,3,150,6],[150,7,150,15],[151,3,153,6],[151,7,151,15],[152,7,152,15],[153,7,153,15],[158,3,160,6],[158,7,158,15],[159,7,159,15],[160,7,160,15],[154,3,154,15],[155,3,155,15],[156,3,156,15],[157,3,157,6],[157,7,157,15],[169,3,169,15],[170,3,170,15],[168,7,168,15],[165,3,165,6],[166,3,168,6],[165,7,165,15],[166,7,166,15],[167,7,167,15],[169,20,169,26],[170,20,170,26],[169,27,169,29],[170,27,170,29],[172,3,174,6],[172,7,172,15],[173,7,173,15],[174,7,174,15],[171,7,171,15],[171,3,171,6],[194,7,194,15],[195,7,195,15],[196,7,196,15],[183,2,183,29],[185,2,185,29],[186,2,186,29],[187,2,187,29],[184,1,184,29],[193,3,193,6],[193,7,193,15],[230,3,230,9],[231,3,231,9],[202,16,202,19],[222,18,222,23],[213,2,213,29],[231,10,231,17],[223,18,223,23],[224,18,224,23],[225,18,225,23],[205,3,205,29],[231,18,231,23],[197,2,197,29],[198,2,198,29],[202,20,202,26],[212,2,212,29],[204,2,204,29],[208,2,208,29],[199,27,199,29],[201,16,201,19],[201,20,201,26],[193,20,194,29],[195,20,196,29],[202,3,203,15],[222,3,222,9],[193,16,193,19],[194,16,194,19],[195,16,195,19],[196,16,196,19],[201,27,201,29],[194,3,196,6],[273,3,273,29],[274,4,274,29],[272,3,272,29],[259,3,259,17],[260,3,260,17],[270,2,270,29],[271,2,271,29],[259,18,259,29],[260,18,260,29],[263,3,263,17],[280,4,280,29],[281,4,281,29],[282,4,282,29],[275,4,275,29],[276,4,276,29],[277,4,277,29],[278,4,278,29],[294,2,294,24],[294,25,294,28],[283,4,283,29],[284,4,284,29],[285,4,285,29],[286,4,286,29],[290,2,290,29],[291,2,291,29],[292,2,292,29],[288,4,288,29],[26,2,26,4],[26,5,26,29],[10,2,11,15],[10,16,10,18],[11,16,11,18],[9,2,9,29],[10,19,11,29],[22,2,22,4],[22,5,22,29],[23,2,23,4],[23,5,23,29],[24,2,24,4],[24,5,24,29],[33,3,33,29],[32,3,32,14],[32,15,32,18],[32,19,32,29],[30,3,30,29],[31,3,31,29],[45,18,45,29],[46,18,46,29],[46,3,46,17],[45,3,45,17],[43,3,43,29],[44,3,44,4],[44,5,44,12],[44,13,44,17],[44,18,44,29],[47,3,47,29],[48,3,48,29],[50,3,50,13],[51,3,51,13],[51,14,51,21],[50,14,50,21],[51,22,51,29],[50,22,50,29],[55,26,55,27],[56,26,56,27],[55,28,55,29],[56,28,56,29],[53,3,53,8],[54,3,54,8],[53,9,53,20],[54,9,54,20],[57,3,57,17],[58,3,58,17],[57,18,57,29],[58,18,58,29],[53,21,53,29],[54,21,54,29],[55,3,55,10],[56,3,56,10],[55,11,55,25],[56,11,56,25],[64,3,64,17],[64,18,64,29],[65,3,65,17],[65,18,65,29],[63,3,63,10],[63,11,63,25],[63,26,63,27],[63,28,63,29],[67,2,67,24],[67,25,67,28],[79,16,79,19],[80,16,81,19],[79,20,79,26],[80,20,81,26],[79,27,79,29],[80,27,81,29],[79,3,79,15],[80,3,80,15],[82,16,82,19],[82,20,82,26],[82,27,82,29],[83,16,84,19],[83,20,84,26],[83,27,84,29],[85,16,85,19],[85,20,85,26],[85,27,85,29],[86,16,87,19],[86,20,87,26],[86,27,87,29],[88,16,88,19],[88,20,88,26],[88,27,88,29],[89,16,99,19],[89,20,99,26],[89,27,99,29],[104,16,104,19],[104,20,104,26],[104,27,104,29],[105,3,105,15],[105,16,105,19],[105,20,105,26],[105,27,105,29],[109,3,109,15],[109,16,109,19],[109,20,109,26],[109,27,109,29],[108,3,108,15],[108,16,108,19],[108,20,108,26],[108,27,108,29],[111,16,111,19],[111,20,111,26],[111,27,111,29],[110,3,110,15],[110,16,110,19],[110,20,110,26],[110,27,110,29],[121,3,121,15],[122,3,122,6],[124,16,124,19],[121,27,121,29],[121,20,121,26],[121,16,121,19],[122,16,122,19],[122,20,123,29],[124,20,125,29],[123,16,123,19],[136,20,137,29],[133,3,133,15],[134,3,134,15],[136,3,136,6],[137,3,137,6],[136,7,136,15],[137,7,137,15],[136,16,136,19],[85,3,85,15],[86,3,86,15],[87,3,87,15],[88,3,88,15],[81,3,81,15],[82,3,82,15],[83,3,83,15],[84,3,84,15],[120,3,120,15],[93,3,93,15],[94,3,94,15],[95,3,95,15],[96,3,96,15],[89,3,89,15],[90,3,90,15],[91,3,91,15],[92,3,92,15],[111,3,111,15],[138,16,138,19],[123,3,125,6],[122,7,122,15],[123,7,123,15],[124,7,124,15],[125,7,125,15],[126,2,126,29],[125,16,125,19],[129,1,129,30],[137,16,137,19],[148,16,149,19],[147,20,147,26],[148,20,149,26],[147,27,147,29],[148,27,149,29],[143,20,144,29],[152,16,152,19],[153,16,153,19],[157,16,157,19],[158,16,158,19],[145,20,146,29],[140,20,140,26],[150,16,150,19],[151,16,151,19],[140,27,140,29],[141,27,142,29],[154,20,154,26],[155,20,156,26],[154,27,154,29],[155,27,156,29],[159,16,159,19],[160,16,160,19],[154,16,154,19],[155,16,156,19],[163,27,163,29],[164,27,164,29],[163,3,163,15],[164,3,164,15],[163,16,163,19],[164,16,164,19],[172,16,172,19],[165,16,165,19],[166,16,166,19],[167,16,167,19],[168,16,168,19],[163,20,163,26],[164,20,164,26],[171,20,172,29],[165,20,166,29],[167,20,168,29],[188,20,189,29],[173,16,173,19],[174,16,174,19],[177,16,177,19],[178,16,178,19],[179,20,180,26],[173,20,174,29],[178,27,178,29],[190,3,190,15],[177,3,177,15],[177,20,177,26],[177,27,177,29],[150,20,151,29],[152,20,153,29],[169,16,169,19],[170,16,170,19],[171,16,171,19],[179,27,180,29],[190,20,190,26],[200,20,200,26],[200,27,200,29],[162,3,162,29],[176,3,176,29],[199,2,201,15],[199,16,199,19],[199,20,199,26],[191,16,192,19],[179,3,179,6],[180,3,180,6],[191,3,192,15],[157,20,158,29],[159,20,160,29],[190,16,190,19],[179,16,179,19],[180,16,180,19],[188,16,188,19],[189,16,189,19],[206,16,206,19],[207,16,207,19],[191,20,192,26],[190,27,190,29],[191,27,192,29],[178,3,178,15],[178,20,178,26],[182,2,182,24],[182,25,182,28],[179,7,179,15],[218,3,218,22],[219,3,219,22],[200,16,200,19],[209,3,209,29],[206,3,206,15],[207,3,207,15],[206,20,206,26],[207,20,207,26],[206,27,206,29],[207,27,207,29],[211,3,211,15],[211,16,211,19],[211,20,211,26],[211,27,211,29],[210,3,210,15],[210,16,210,19],[210,20,210,26],[210,27,210,29],[216,23,216,29],[217,23,217,29],[218,23,218,29],[219,23,219,29],[214,23,214,29],[214,3,214,22],[215,3,215,22],[215,23,215,29],[216,3,216,22],[217,3,217,22],[226,18,226,23],[227,18,227,23],[222,10,222,17],[223,10,223,17],[224,10,224,17],[225,10,225,17],[228,24,228,29],[229,24,229,29],[230,24,230,29],[226,10,226,17],[227,10,227,17],[228,10,228,17],[229,10,229,17],[228,18,228,23],[229,18,229,23],[230,10,230,17],[34,3,34,17],[36,2,36,29],[233,3,233,9],[232,18,232,23],[233,18,233,23],[232,10,232,17],[222,24,222,29],[223,24,223,29],[224,24,224,29],[225,24,225,29],[38,5,38,17],[41,5,41,29],[37,3,37,29],[38,3,38,4],[38,18,38,29],[14,2,14,4],[14,5,14,29],[25,2,25,4],[25,5,25,29],[34,19,34,29],[133,20,133,26],[133,16,133,19],[134,16,135,19],[134,20,135,26],[134,27,135,29],[39,2,39,29],[42,2,42,29],[97,3,97,15],[98,3,98,15],[99,3,99,15],[180,7,180,15],[188,7,188,15],[189,7,189,15],[189,3,189,6],[188,3,188,6],[115,3,115,29],[116,3,116,29],[132,2,132,29],[135,3,135,15],[133,27,133,29],[287,4,287,29],[231,24,231,29],[232,24,232,29],[233,24,233,29],[244,3,244,17],[244,18,244,29],[233,10,233,17],[252,3,252,29],[253,3,253,29],[279,4,279,29],[250,2,250,29],[251,2,251,29],[245,2,245,29],[247,2,247,29],[242,3,242,29],[220,3,220,29],[221,3,221,29],[236,3,236,29],[226,24,226,29],[227,24,227,29],[263,18,263,29],[264,3,264,17],[264,18,264,29],[265,3,265,17],[265,18,265,29],[241,2,241,29],[256,2,256,29],[261,2,261,29],[262,3,262,17],[262,18,262,29],[266,3,266,17],[266,18,266,29],[269,3,269,17],[269,18,269,29],[267,3,267,17],[267,18,267,29],[268,3,268,17],[268,18,268,29]]}
["Uruchamianie przycisków i opcji (q) wymaga włączenia makro",null,null,null,null,null,null,null,null,null,null,null,null,null,null,null,null,null,null,null,null,null,null,null,null,null,null,null,null,null,null,null,null,"POLSKA","DOLNOŚLĄSKIE"]
[null,null,null,null,null,null,null,null,null,null,null,null,null,null,null,null,null,null,null,null,null,null,null,null,null,null,null,null,null,null,null,null,null,"AFGANISTAN","KUJAWSKO-POMORSKIE"]
[null,null,null,null,null,null,null,null,null,null,null,null,null,null,null,null,null,null,null,null,null,null,null,null,null,null,null,null,null,null,null,null,null,"ALAND ISLANDS","LUBELSKIE"]
[null,null," WYPEŁNIĆ DUŻYMI, DRUKOWANYMI LITERAMI, CZARNYM LUB NIEBIESKIM KOLOREM.",null,null,null,null,null,null,null,null,null,null,null,null,null,null,null,null,null,null,null,null,null,null,null,null,null,null,null,null,null,null,"ALBANIA","LUBUSKIE"]
[null,null,null,null,null,null,null,null,null,null,null,null,null,null,null,null,null,null,null,null,null,null,null,null,null,null,null,null,null,null,null,null,null,"ALGIERIA","ŁÓDZKIE"]
[null,null," 1. Identyfikator podatkowy NIP /",null,null,null,"numer PESEL",null,null,null,null," (niepotrzebne skreślić)1)",null,null,null,null,null," 2. Nr dokumentu",null,null,null,null,null,null,null,null,null,null,null,null,null,null,null,"ANDORA","MAŁOPOLSKIE"]
[null,null,null,null,null,null,null,null,null,null,null,null,null,null,null,null,null,null,null,null,null,null,null,null,null,null,null,null,null,null,null,null,null,"ANGOLA","MAZOWIECKIE"]
[null,null,"DN-1",null,null,null,null,null,null,null,null,null,null,null,null,null,null,null,null,null,null,null,null,null,null,null,null,null,null,null,null,null,null,"ANGUILLA","OPOLSKIE"]
[null,null," DEKLARACJA NA PODATEK OD NIERUCHOMOŚCI",null,null,null,null,null,null,null,null,null,null,null,null,null,null,null,null,null,null,null,null,null,null,null,null,null,null,null,null,null,null,"ANTARKTYDA","PODKARPACKIE"]
[null,null,null,null,null,null,null,null,null,null,null,null,null,null,null,null,null,null,null,null,null,null,null,null,null,null,null,null,null,null,null,null,null,"ANTIGUA I BARBUDA","PODLASKIE"]
[null,null,"NA ROK  ",null,null,null,null,null,null,null,null,null,null,null,null,null," 3. Rok",null,null,null,null,null,null,null,null,null,null,null,null,null,null,null,null,"ANTYLE HOLENDERSKIE","POMORSKIE"]
[null,null,null,null,null,null,null,null,null,null,null,null,null,null,null,null,null,null,null,null,null,null,null,null,null,null,null,null,null,null,null,null,null,"ARABIA SAUDYJSKA","ŚLĄSKIE"]
[null,null,null,null,null,null,null,null,null,null,null,null,null,null,null,null,null,null,null,null,null,null,null,null,null,null,null,null,null,null,null,null,null,"ARGENTYNA","ŚWIĘTOKRZYSKIE"]
[null,null," Podstawa prawna:",null,null," Art. 6 ust. 9, 10 i 11 ustawy z dnia 12 stycznia 1991 r. o podatkach i opłatach lokalnych (Dz. U. z 2018 r. poz. 1445, z późn. zm.),",null,null,null,null,null,null,null,null,null,null,null,null,null,null,null,null,null,null,null,null,null,null,null,null,null,null,null,"ARMENIA","WARMIŃSKO-MAZURSKIE"]
[null,null,null,null,null," zwanej dalej „ustawą”.",null,null,null,null,null,null,null,null,null,null,null,null,null,null,null,null,null,null,null,null,null,null,null,null,null,null,null,"ARUBA","WIELKOPOLSKIE"]
[null,null," Składający:",null,null," Osoby  prawne,   jednostki organizacyjne  oraz   spółki  niemające  osobowości  prawnej,  jednostki  organizacyjne Krajowego",null,null,null,null,null,null,null,null,null,null,null,null,null,null,null,null,null,null,null,null,null,null,null,null,null,null,null,"AUSTRALIA","ZACHODNIOPOMORSKIE"]
[null,null,null,null,null," Ośrodka Wsparcia Rolnictwa, a także jednostki organizacyjne Państwowego Gospodarstwa Leśnego Lasy Państwowe będące",null,null,null,null,null,null,null,null,null,null,null,null,null,null,null,null,null,null,null,null,null,null,null,null,null,null,null,"AUSTRIA"]
[null,null,null,null,null," właścicielami nieruchomości lub obiektów budowlanych, posiadaczami samoistnymi nieruchomości lub obiektów budowlanych,",null,null,null,null,null,null,null,null,null,null,null,null,null,null,null,null,null,null,null,null,null,null,null,null,null,null,null,"AZERBEJDŻAN"]
[null,null,null,null,null," użytkownikami  wieczystymi  gruntów,  posiadaczami  nieruchomości  lub  ich  części albo obiektów budowlanych lub ich części,",null,null,null,null,null,null,null,null,null,null,null,null,null,null,null,null,null,null,null,null,null,null,null,null,null,null,null,"BAHAMY"]
[null,null,null,null,null," stanowiących   własność   Skarbu   Państwa    lub   jednostki   samorządu    terytorialnego    oraz    osoby    fizyczne   będące",null,null,null,null,null,null,null,null,null,null,null,null,null,null,null,null,null,null,null,null,null,null,null,null,null,null,null,"BAHRAJN"]
[null,null,null,null,null," współwłaścicielami  lub  współposiadaczami  nieruchomości  lub  obiektów  budowlanych  z  osobami  prawnymi,  jednostkami",null,null,null,null,null,null,null,null,null,null,null,null,null,null,null,null,null,null,null,null,null,null,null,null,null,null,null,"BANGLADESZ"]
[null,null,null,null,null," organizacyjnymi nieposiadającymi osobowości prawnej lub spółkami nieposiadającymi osobowości prawnej, z wyjątkiem osób",null,null,null,null,null,null,null,null,null,null,null,null,null,null,null,null,null,null,null,null,null,null,null,null,null,null,null,"BARBADOS"]
[null,null,null,null,null," tworzących wspólnotę mieszkaniową.",null,null,null,null,null,null,null,null,null,null,null,null,null,null,null,null,null,null,null,null,null,null,null,null,null,null,null,"BELGIA"]
[null,null," Termin składania:",null,null," Do dnia 31 stycznia danego roku podatkowego lub w terminie 14 dni od dnia zaistnienia okoliczności uzasadniających",null,null,null,null,null,null,null,null,null,null,null,null,null,null,null,null,null,null,null,null,null,null,null,null,null,null,null,"BELIZE"]
[null,null,null,null,null," powstanie obowiązku podatkowego lub od dnia zaistnienia zdarzenia mającego wpływ na wysokość opodatkowania, o którym",null,null,null,null,null,null,null,null,null,null,null,null,null,null,null,null,null,null,null,null,null,null,null,null,null,null,null,"BENIN"]
[null,null,null,null,null," mowa w art. 6 ust. 3 ustawy.",null,null,null,null,null,null,null,null,null,null,null,null,null,null,null,null,null,null,null,null,null,null,null,null,null,null,null,"BERMUDY"]
[null,null," Miejsce składania:",null,null," Organ podatkowy właściwy ze względu na miejsce położenia przedmiotów opodatkowania.",null,null,null,null,null,null,null,null,null,null,null,null,null,null,null,null,null,null,null,null,null,null,null,null,null,null,null,"BHUTAN"]
[null,null,null,null,null,null,null,null,null,null,null,null,null,null,null,null,null,null,null,null,null,null,null,null,null,null,null,null,null,null,null,null,null,"BIAŁORUŚ"]
[null,null," A. MIEJSCE I CEL SKŁADANIA DEKLARACJI2)",null,null,null,null,null,null,null,null,null,null,null,null,null,null,null,null,null,null,null,null,null,null,null,null,null,null,null,null,null,null,"BOLIWIA"]
[null,null,null," 4. Nazwa i adres siedziby organu podatkowego",null,null,null,null,null,null,null,null,null,null,null,null,null,null,null,null,null,null,null,null,null,null,null,null,null,null,null,null,null,"BOŚNIA I HERCEGOWINA"]
[null,null,null,null,null,null,null,null,null,null,null,null,null,null,null,null,null,null,null,null,null,null,null,null,null,null,null,null,null,null,null,null,null,"BOTSWANA"]
[null,null,null," 5. Cel złożenia formularza (zaznaczyć właściwy kwadrat):",null,null,null,null,null,null,null,null,null,null,null,null,null,null,null,null,null,null,null,null,null,null,null,null,null,null,null,null,null,"BRAZYLIA"]
[null,null,null,null,null,null,null,null,null,null,null,null,null,null,null," 1. złożenie deklaracji",null,null,null," 2. korekta deklaracji3)",null,null,null,null,null,null,null,null,null,null,null,null,null,"BRUNEI DARUSSALAM"]
[null,null,null," 6. Okres – od którego deklaracja obowiązuje",null,null,null,null,null,null,null,null,null,null,null,null,null,null,null,null,null,null,null,null,null,null,null,null,null,null,null,null,null,"BRYTYJSKIE TERYTORIUM OCEANU INDYJSKIEGO"]
[null,null,null," (miesiąc)  ",null,null,null,null,null,null,null,null,null,null,null,null,null,null,1,null,null,null,null,null,null,null,null,null,null,null,null,null,null,"BUŁGARIA"]
[null,null,null,null,null,null,null,null,null,null,null,null,null,null,null,null,null,null,null,null,null,null,null,null,null,null,null,null,null,null,null,null,null,"BURKINA FASO"]
[null,null," B. PODMIOT ZOBOWIĄZANY DO ZŁOŻENIA DEKLARACJI",null,null,null,null,null,null,null,null,null,null,null,null,null,null,null,null,null,null,null,null,null,null,null,null,null,null,null,null,null,null,"BURUNDI"]
[null,null,null," 7. Rodzaj podmiotu (zaznaczyć właściwy kwadrat):",null,null,null,null,null,null,null,null,null,null,null,null,null,null,null,null,null,null,null,null,null,null,null,null,null,null,null,null,null,"CEUTA"]
[null,null,null,null,null," 1. właściciel, użytkownik wieczysty lub posiadacz",null,null,null,null,null,null,null,null,null,null,null,null,"2. współwłaściciel, współużytkownik wieczysty lub współposiadacz",null,null,null,null,null,null,null,null,null,null,null,null,null,null,"CHILE"]
[null,null,null,null,null,null,null,null,null,null,null,null,null,null,null,null,null,null,null,null,null,null,null,null,null,null,null,null,null,null,null,null,null,"CHINY"]
[null,null," C. DANE PODATNIKA",null,null,null,null,null,null,null,null,null,null,null,null,null,null,null,null,null,null,null,null,null,null,null,null,null,null,null,null,null,null,"CHORWACJA"]
[null,null,null,null,null,"* - dotyczy podatnika niebędącego osobą fizyczną ** - dotyczy podatnika będącego osobą fizyczną",null,null,null,null,null,null,null,null,null,null,null,null,null,null,null,null,null,null,null,null,null,null,null,null,null,null,null,"CYPR"]
[null,null," C.1. DANE IDENTYFIKACYJNE",null,null,null,null,null,null,null,null,null,null,null,null,null,null,null,null,null,null,null,null,null,null,null,null,null,null,null,null,null,null,"CZAD"]
[null,null,null," 8. Rodzaj podatnika (zaznaczyć właściwy kwadrat):",null,null,null,null,null,null,null,null,null,null,null,null,null,null,null,null,null,null,null,null,null,null,null,null,null,null,null,null,null,"CZARNOGÓRA"]
[null,null,null,null,null," 1. osoba fizyczna",null,null,null,null,null,null,null," 2. osoba prawna",null,null,null,null," 3. jednostka organizacyjna, w tym spółka nieposiadająca osobowości prawnej",null,null,null,null,null,null,null,null,null,null,null,null,null,null,"DANIA"]
[null,null,null," 9. Nazwa pełna * / Nazwisko **",null,null,null,null,null,null,null,null,null,null,null,null,null,null," 10. Nazwa skrócona * / Pierwsze imię**",null,null,null,null,null,null,null,null,null,null,null,null,null,null,"DOMINIKA"]
[null,null,null,null,null,null,null,null,null,null,null,null,null,null,null,null,null,null,null,null,null,null,null,null,null,null,null,null,null,null,null,null,null,"DOMINIKANA"]
[null,null,null," 11. Identyfikator REGON (w przypadku osób fizycznych REGON podaje się, o ile został nadany)",null,null,null,null,null,null,null,null,null,null,null,null,null,null,null,null,null,null,null,null,null,null,null,null,null,null,null,null,null,"DŻIBUTI"]
[null,null,null,null,null,null,null,null,null,null,null,null,null,null,null,null,null,null,null,null,null,null,null,null,null,null,null,null,null,null,null,null,null,"EGIPT"]
[null,null,"Pola 12, 13, 14 wypełnia osoba fizyczna w przypadku, gdy numer PESEL nie został nadany.",null,null,null,null,null,null,null,null,null,null,null,null,null,null,null,null,null,null,null,null,null,null,null,null,null,null,null,null,null,null,"EKWADOR"]
[null,null,null," 12. Data urodzenia (dzień - miesiąc - rok)",null,null,null,null,null,null,null,null,null,null," 13. Imię ojca",null,null,null,null,null,null,null," 14. Imię matki",null,null,null,null,null,null,null,null,null,null,"ERYTREA"]
[null,null,null,null,null,null,null,null,null,null,null,null,null,null,null,null,null,null,null,null,null,null,null,null,null,null,null,null,null,null,null,null,null,"ESTONIA"]
[null,null," C.2. ADRES SIEDZIBY * / ADRES ZAMIESZKANIA **",null,null,null,null,null,null,null,null,null,null,null,null,null,null,null,null,null,null,null,null,null,null,null,null,null,null,null,null,null,null,"ETIOPIA"]
[null,null,null," 15. Kraj",null,null,null,null,null," 16. Województwo",null,null,null,null,null,null,null,null,null,null,null," 17. Powiat",null,null,null,null,null,null,null,null,null,null,null,"FALKLANDY"]
[null,null,null,null,null,null,null,null,null,null,null,null,null,null,null,null,null,null,null,null,null,null,null,null,null,null,null,null,null,null,null,null,null,"FIDŻI REPUBLIKA"]
[null,null,null," 18. Gmina",null,null,null,null,null,null,null," 19. Ulica",null,null,null,null,null,null,null,null,null,null,null,null,null,null," 20. Nr domu",null," 21. Nr lokalu",null,null,null,null,"FILIPINY"]
[null,null,null,null,null,null,null,null,null,null,null,null,null,null,null,null,null,null,null,null,null,null,null,null,null,null,null,null,null,null,null,null,null,"FINLANDIA"]
[null,null,null," 22. Miejscowość",null,null,null,null,null,null,null,null,null,null,null,null,null,null," 23. Kod pocztowy",null,null,null,null,null,null,null,null,null,null,null,null,null,null,"FRANCJA"]
[null,null,null,null,null,null,null,null,null,null,null,null,null,null,null,null,null,null,null,null,null,null,null,null,null,null,null,null,null,null,null,null,null,"FRANCUSKIE TERYTORIUM POŁUDNIOWE"]
[null,null," C.3. ADRES DO DORĘCZEŃ Należy wypełnić tylko wówczas, gdy adres do doręczeń jest inny niż w części C.2.",null,null,null,null,null,null,null,null,null,null,null,null,null,null,null,null,null,null,null,null,null,null,null,null,null,null,null,null,null,null,"GABON"]
[null,null,null," 24. Kraj",null,null,null,null,null," 25. Województwo",null,null,null,null,null,null,null,null,null,null,null," 26. Powiat",null,null,null,null,null,null,null,null,null,null,null,"GAMBIA"]
[null,null,null,null,null,null,null,null,null,null,null,null,null,null,null,null,null,null,null,null,null,null,null,null,null,null,null,null,null,null,null,null,null,"GHANA"]
[null,null,null," 27. Gmina",null,null,null,null,null,null,null," 28. Ulica",null,null,null,null,null,null,null,null,null,null,null,null,null,null," 29. Nr domu",null," 30. Nr lokalu",null,null,null,null,"GIBRALTAR"]
[null,null,null,null,null,null,null,null,null,null,null,null,null,null,null,null,null,null,null,null,null,null,null,null,null,null,null,null,null,null,null,null,null,"GRECJA"]
[null,null,null," 31. Miejscowość",null,null,null,null,null,null,null,null,null,null,null,null,null,null," 32. Kod pocztowy",null,null,null,null,null,null,null,null,null,null,null,null,null,null,"GRENADA"]
[null,null,null,null,null,null,null,null,null,null,null,null,null,null,null,null,null,null,null,null,null,null,null,null,null,null,null,null,null,null,null,null,null,"GRENLANDIA"]
[null,null,null,null,null,null,null,null,null,null,null,null,null,null,null,null,null,null,null,null,null,null,null,null,null,null,null,null,null,null,null,null,null,"GRUZJA"]
[null,null,null,null,null,null,null,null,null,null,null,null,null,null,null,null,null,null,null,null,null,null,null,null,null,"DN-1(1)",null,null,null,"1/5",null,null,null,"GUAM"]
[null,null,null,null,null,null,null,null,null,null,null,null,null,null,null,null,null,null,null,null,null,null,null,null,null,null,null,null,null,null,null,null,null,"GUERNSEY"]
[null,null,null,null,null,null,null,null,null,null,null,null,null,null,null,null,null,null,null,null,null,null,null,null,null,null,null,null,null,null,null,null,null,"GUJANA"]
[null,null,null,null,null,null,null,null,null,null,null,null,null,null,null,null,null,null,null,null,null,null,null,null,null,null,null,null,null,null,null,null,null,"GUJANA FRANCUSKA"]
[null,null," WYPEŁNIĆ DUŻYMI, DRUKOWANYMI LITERAMI, CZARNYM LUB NIEBIESKIM KOLOREM.",null,null,null,null,null,null,null,null,null,null,null,null,null,null,null,null,null,null,null,null,null,null,null,null,null,null,null,null,null,null,"GWADELUPA"]
[null,null,null,null,null,null,null,null,null,null,null,null,null,null,null,null,null,null,null,null,null,null,null,null,null,null,null,null,null,null,null,null,null,"GWATEMALA"]
[null,null,null,null,null,null,null,null,null,null,null,null,null,null,null,null,null,null,null,null,null,null,null,null,null,null,null,null,null,null,null,null,null,"GWINEA"]
[null,null," D. DANE O PRZEDMIOTACH OPODATKOWANIA PODLEGAJĄCYCH OPODATKOWANIU",null,null,null,null,null,null,null,null,null,null,null,null,null,null,null,null,null,null,null,null,null,null,null,null,null,null,null,null,null,null,"GWINEA RÓWNIKOWA"]
[null,null," D.1. GRUNTY",null,null,null,null,null,null,null,null,null,null,null,null,null,null,null,null,null,null,null,null,null,null,null,null,null,null,null,null,null,null,"GWINEA-BISSAU"]
[null,null,null,null,null,null,null,null,null,null,null,null,null,null,null,null," Powierzchnia w m2 / ha4)",null,null,null," Stawka podatku",null,null,null,null,null,null," Kwota podatku za okres,",null,null,null,null,null,"HAITI"]
[null,null,null,null,null,null,null,null,null,null,null,null,null,null,null,null,null,null,null,null,null,null,null,null,null,null,null," którego dotyczy deklaracja5)",null,null,null,null,null,"HISZPANIA"]
[null,null,null,null,null,null,null,null,null,null,null,null,null,null,null,null,null,null,null,null," zł      gr ",null,null,null,null,null,null," zł      gr ",null,null,null,null,null,"HONDURAS"]
[null,null,null," Związane z prowadzeniem działalności gospodarczej,",null,null,null,null,null,null,null,null,null,null,null,null," 33. ",null,null,null," 34. ",null,null,null,null,null,null," 35. ",null,null,null,null,null,"HONGKONG"]
[null,null,null," bez względu na sposób zakwalifikowania w ewidencji",null,null,null,null,null,null,null,null,null,null,null,null,null,null,null,null,null,null,null,null,null,null,null,{"$f":"Q81*U81/12*(13-S35)","v":0},null,null,null,null,null,"INDIE"]
[null,null,null," gruntów i budynków",null,null,null,null,null,null,null,null,null,null,null,null,null,null,null,null,null,null,null,null,null,null,null,null,null,null,null,null,null,"INDONEZJA"]
[null,null,null," Pod wodami powierzchniowymi stojącymi lub wodami",null,null,null,null,null,null,null,null,null,null,null,null," 36. ",null,null,null," 37. ",null,null,null,null,null,null," 38. ",null,null,null,null,null,"IRAK"]
[null,null,null," powierzchniowymi płynącymi jezior i zbiorników",null,null,null,null,null,null,null,null,null,null,null,null,null,null,null,null,null,null,null,null,null,null,null,{"$f":"Q84*U84/12*(13-S35)","v":0},null,null,null,null,null,"IRAN"]
[null,null,null," sztucznych",null,null,null,null,null,null,null,null,null,null,null,null,null,null,null,null,null,null,null,null,null,null,null,null,null,null,null,null,null,"IRLANDIA"]
[null,null,null," Pozostałe, w tym zajęte na prowadzenie odpłatnej",null,null,null,null,null,null,null,null,null,null,null,null," 39. ",null,null,null," 40. ",null,null,null,null,null,null," 41. ",null,null,null,null,null,"ISLANDIA"]
[null,null,null," statutowej działalności pożytku publicznego przez",null,null,null,null,null,null,null,null,null,null,null,null,null,null,null,null,null,null,null,null,null,null,null,{"$f":"Q87*U87/12*(13-S35)","v":0},null,null,null,null,null,"IZRAEL"]
[null,null,null," organizacje pożytku publicznego",null,null,null,null,null,null,null,null,null,null,null,null,null,null,null,null,null,null,null,null,null,null,null,null,null,null,null,null,null,"JAMAJKA"]
[null,null,null," Niezabudowane objęte obszarem rewitalizacji, o którym",null,null,null,null,null,null,null,null,null,null,null,null," 42. ",null,null,null," 43. ",null,null,null,null,null,null," 44. ",null,null,null,null,null,"JAPONIA"]
[null,null,null," mowa w ustawie z dnia 9 października 2015 r.",null,null,null,null,null,null,null,null,null,null,null,null,null,null,null,null,null,null,null,null,null,null,null,{"$f":"Q90*U90/12*(13-S35)","v":0},null,null,null,null,null,"JEMEN"]
[null,null,null," o rewitalizacji (Dz. U. z 2018 r. poz. 1398, z późn. zm.),",null,null,null,null,null,null,null,null,null,null,null,null,null,null,null,null,null,null,null,null,null,null,null,null,null,null,null,null,null,"JERSEY"]
[null,null,null," i położone na terenach, dla których miejscowy plan",null,null,null,null,null,null,null,null,null,null,null,null,null,null,null,null,null,null,null,null,null,null,null,null,null,null,null,null,null,"JORDANIA"]
[null,null,null," zagospodarowania przestrzennego przewiduje",null,null,null,null,null,null,null,null,null,null,null,null,null,null,null,null,null,null,null,null,null,null,null,null,null,null,null,null,null,"KAJMANY"]
[null,null,null," przeznaczenie pod zabudowę mieszkaniową, usługową",null,null,null,null,null,null,null,null,null,null,null,null,null,null,null,null,null,null,null,null,null,null,null,null,null,null,null,null,null,"KAMBODŻA"]
[null,null,null," albo zabudowę o przeznaczeniu mieszanym",null,null,null,null,null,null,null,null,null,null,null,null,null,null,null,null,null,null,null,null,null,null,null,null,null,null,null,null,null,"KAMERUN"]
[null,null,null," obejmującym wyłącznie te rodzaje zabudowy, jeżeli od",null,null,null,null,null,null,null,null,null,null,null,null,null,null,null,null,null,null,null,null,null,null,null,null,null,null,null,null,null,"KANADA"]
[null,null,null," dnia wejścia w życie tego planu w odniesieniu do tych",null,null,null,null,null,null,null,null,null,null,null,null,null,null,null,null,null,null,null,null,null,null,null,null,null,null,null,null,null,"KATAR"]
[null,null,null," gruntów upłynął okres 4 lat, a w tym czasie nie",null,null,null,null,null,null,null,null,null,null,null,null,null,null,null,null,null,null,null,null,null,null,null,null,null,null,null,null,null,"KAZACHSTAN"]
[null,null,null," zakończono budowy zgodnie z przepisami prawa",null,null,null,null,null,null,null,null,null,null,null,null,null,null,null,null,null,null,null,null,null,null,null,null,null,null,null,null,null,"KENIA"]
[null,null,null," budowlanego",null,null,null,null,null,null,null,null,null,null,null,null,null,null,null,null,null,null,null,null,null,null,null,null,null,null,null,null,null,"KIRGISTAN"]
[null,null," D.1.1. INNE GRUNTY (1) Należy wypełnić tylko dla rodzajów przedmiotów opodatkowania innych niż określone w części D.1.",null,null,null,null,null,null,null,null,null,null,null,null,null,null,null,null,null,null,null,null,null,null,null,null,null,null,null,null,null,null,"KIRIBATI"]
[null,null,null,null," Podać nazwę rodzaju przedmiotu opodatkowania lub jednostkę redakcyjną - zgodnie z uchwałą rady gminy.",null,null,null,null,null,null,null,null,null,null,null,null,null,null,null,null,null,null,null,null,null,null,null,null,null,null,null,null,"KOLUMBIA"]
[null,null,null," 45. Rodzaj przedmiotu opodatkowania",null,null,null,null,null,null,null,null,null,null,null,null," 46. ",null,null,null," 47. ",null,null,null,null,null,null," 48. ",null,null,null,null,null,"KOMORY"]
[null,null,null,null,null,null,null,null,null,null,null,null,null,null,null,null,null,null,null,null,null,null,null,null,null,null,null,{"$f":"Q104*U104/12*(13-S35)","v":0},null,null,null,null,null,"KONGO"]
[null,null,null," 49. Rodzaj przedmiotu opodatkowania",null,null,null,null,null,null,null,null,null,null,null,null," 50. ",null,null,null," 51. ",null,null,null,null,null,null," 52. ",null,null,null,null,null,"KONGO, REPUBLIKA DEMOKRATYCZNA"]
[null,null,null,null,null,null,null,null,null,null,null,null,null,null,null,null,null,null,null,null,null,null,null,null,null,null,null,{"$f":"Q106*U106/12*(13-S35)","v":0},null,null,null,null,null,"KOREAŃ\u0083SKA REPUBLIKA LUDOWO-DEMOKRATYCZNA"]
[null,null," D.1.2. INNE GRUNTY (2) Należy wypełnić tylko dla rodzajów przedmiotów opodatkowania innych niż określone w części D.1.",null,null,null,null,null,null,null,null,null,null,null,null,null,null,null,null,null,null,null,null,null,null,null,null,null,null,null,null,null,null,"KOSOWO"]
[null,null,null,null," Podać nazwę rodzaju przedmiotu opodatkowania lub jednostkę redakcyjną - zgodnie z uchwałą rady gminy.",null,null,null,null,null,null,null,null,null,null,null,null,null,null,null,null,null,null,null,null,null,null,null,null,null,null,null,null,"KOSTARYKA"]
[null,null,null," 45. Rodzaj przedmiotu opodatkowania",null,null,null,null,null,null,null,null,null,null,null,null," 46. ",null,null,null," 47. ",null,null,null,null,null,null," 48. ",null,null,null,null,null,"KUBA"]
[null,null,null,null,null,null,null,null,null,null,null,null,null,null,null,null,null,null,null,null,null,null,null,null,null,null,null,{"$f":"Q110*U110/12*(13-S35)","v":0},null,null,null,null,null,"KUWEJT"]
[null,null,null," 49. Rodzaj przedmiotu opodatkowania",null,null,null,null,null,null,null,null,null,null,null,null," 50. ",null,null,null," 51. ",null,null,null,null,null,null," 52. ",null,null,null,null,null,"LAOS"]
[null,null,null,null,null,null,null,null,null,null,null,null,null,null,null,null,null,null,null,null,null,null,null,null,null,null,null,{"$f":"Q112*U112/12*(13-S35)","v":0},null,null,null,null,null,"LESOTHO"]
[null,null," D.2. BUDYNKI LUB ICH CZĘŚCI Do powierzchni użytkowej budynku lub jego części zalicza się powierzchnię mierzoną po",null,null,null,null,null,null,null,null,null,null,null,null,null,null,null,null,null,null,null,null,null,null,null,null,null,null,null,null,null,null,"LIBAN"]
[null,null,null," wewnętrznej długości ścian na wszystkich kondygnacjach, z wyjątkiem powierzchni klatek schodowych oraz szybów dźwigowych;",null,null,null,null,null,null,null,null,null,null,null,null,null,null,null,null,null,null,null,null,null,null,null,null,null,null,null,null,null,"LIBERIA"]
[null,null,null," za kondygnację uważa się również garaże podziemne, piwnice, sutereny i poddasza użytkowe.",null,null,null,null,null,null,null,null,null,null,null,null,null,null,null,null,null,null,null,null,null,null,null,null,null,null,null,null,null,"LIBIA"]
[null,null,null," Powierzchnię pomieszczeń lub ich części oraz część kondygnacji o wysokości w świetle od 1,40 m do 2,20 m zalicza się do powierzchni",null,null,null,null,null,null,null,null,null,null,null,null,null,null,null,null,null,null,null,null,null,null,null,null,null,null,null,null,null,"LIECHTENSTEIN"]
[null,null,null," użytkowej budynku w 50%, a jeżeli wysokość jest mniejsza niż 1,40 m, powierzchnię tę pomija się.",null,null,null,null,null,null,null,null,null,null,null,null,null,null,null,null,null,null,null,null,null,null,null,null,null,null,null,null,null,"LITWA"]
[null,null,null,null,null,null,null,null,null,null,null,null,null,null,null,null," Powierzchnia użytkowa w m2",null,null,null," Stawka podatku",null,null,null,null,null,null," Kwota podatku za okres,",null,null,null,null,null,"ŁOTWA"]
[null,null,null,null,null,null,null,null,null,null,null,null,null,null,null,null,null,null,null,null,null,null,null,null,null,null,null," którego dotyczy deklaracja5)",null,null,null,null,null,"LUKSEMBURG"]
[null,null,null,null,null,null,null,null,null,null,null,null,null,null,null,null,null,null,null,null," zł      gr ",null,null,null,null,null,null," zł      gr ",null,null,null,null,null,"MACEDONIA"]
[null,null,null," Budynki mieszkalne - ogółem",null,null,null,null,null,null,null,null,null,null,null,null," 53. ",null,null,null," 54. ",null,null,null,null,null,null," 55. ",null,null,null,null,null,"MADAGASKAR"]
[null,null,null,null,null,null,null,null,null,null,null,null,null,null,null,null,{"$f":"Q124+Q126","v":0},null,null,null,null,null,null,null,null,null,null,{"$f":"Q122*U122/12*(13-S35)","v":0},null,null,null,null,null,"MAJOTTA"]
[null,null,null," w tym kondygnacji",null,null,null," - od 1,40 do 2,20 m",null,null,null,null,null,null,null,null," 56. ",null,null,null,null,null,null,null,null,null,null,null,null,null,null,null,null,"MAKAU"]
[null,null,null," o wysokości:",null,null,null,null,null,null,null,null,null,null,null,null,null,null,null,null,null,null,null,null,null,null,null,null,null,null,null,null,null,"MALAWI"]
[null,null,null,null,null,null,null," - powyżej 2,20 m",null,null,null,null,null,null,null,null," 57. ",null,null,null,null,null,null,null,null,null,null,null,null,null,null,null,null,"MALEDIWY"]
[null,null,null,null,null,null,null,null,null,null,null,null,null,null,null,null,null,null,null,null,null,null,null,null,null,null,null,null,null,null,null,null,null,"MALEZJA"]
[null,null,null,null,null,null,null,null,null,null,null,null,null,null,null,null,null,null,null,null,null,null,null,null,null,null,null,null,null,null,null,null,null,"MALI"]
[null,null,"DN-1(1)",null,null,"2/5",null,null,null,null,null,null,null,null,null,null,null,null,null,null,null,null,null,null,null,null,null,null,null,null,null,null,null,"MALTA"]
[null,null,null,null,null,null,null,null,null,null,null,null,null,null,null,null,null,null,null,null,null,null,null,null,null,null,null,null,null,null,null,null,null,"MARIANY PÓŁNOCNE"]
[null,null,null,null,null,null,null,null,null,null,null,null,null,null,null,null,null,null,null,null,null,null,null,null,null,null,null,null,null,null,null,null,null,"MAROKO"]
[null,null,null,null,null,null,null,null,null,null,null,null,null,null,null,null,null,null,null,null,null,null,null,null,null,null,null,null,null,null,null,null,null,"MARTYNIKA"]
[null,null," WYPEŁNIĆ DUŻYMI, DRUKOWANYMI LITERAMI, CZARNYM LUB NIEBIESKIM KOLOREM.",null,null,null,null,null,null,null,null,null,null,null,null,null,null,null,null,null,null,null,null,null,null,null,null,null,null,null,null,null,null,"MAURETANIA"]
[null,null,null,null,null,null,null,null,null,null,null,null,null,null,null,null,null,null,null,null,null,null,null,null,null,null,null,null,null,null,null,null,null,"MAURITIUS"]
[null,null,null," Związane z prowadzeniem działalności gospodarczej",null,null,null,null,null,null,null,null,null,null,null,null," 58.",null,null,null," 59.",null,null,null,null,null,null," 60.",null,null,null,null,null,"MEKSYK"]
[null,null,null," oraz budynki mieszkalne lub ich części zajęte na",null,null,null,null,null,null,null,null,null,null,null,null,{"$f":"Q138+Q140","v":0},null,null,null,null,null,null,null,null,null,null,null,null,null,null,null,null,"MELILLA"]
[null,null,null," prowadzenie działalności gospodarczej - ogółem",null,null,null,null,null,null,null,null,null,null,null,null,null,null,null,null,null,null,null,null,null,null,null,null,null,null,null,null,null,"MIKRONEZJA"]
[null,null,null," w tym kondygnacji",null,null,null," - od 1,40 do 2,20 m",null,null,null,null,null,null,null,null," 61. ",null,null,null,null,null,null,null,null,null,null,null,null,null,null,null,null,"MINOR"]
[null,null,null," o wysokości:",null,null,null,null,null,null,null,null,null,null,null,null,null,null,null,null,null,null,null,null,null,null,null,null,null,null,null,null,null,"MOŁDOWA"]
[null,null,null,null,null,null,null," - powyżej 2,20 m",null,null,null,null,null,null,null,null," 62. ",null,null,null,null,null,null,null,null,null,null,null,null,null,null,null,null,"MONAKO"]
[null,null,null,null,null,null,null,null,null,null,null,null,null,null,null,null,null,null,null,null,null,null,null,null,null,null,null,null,null,null,null,null,null,"MONGOLIA"]
[null,null,null," Zajęte na prowadzenie działalności gospodarczej w",null,null,null,null,null,null,null,null,null,null,null,null," 63. ",null,null,null," 64. ",null,null,null,null,null,null," 65. ",null,null,null,null,null,"MONTSERRAT"]
[null,null,null," zakresie obrotu kwalifikowanym materiałem siewnym -",null,null,null,null,null,null,null,null,null,null,null,null,{"$f":"Q145+Q147","v":0},null,null,null,null,null,null,null,null,null,null,{"$f":"Q142*U142/12*(13-S35)","v":0},null,null,null,null,null,"MOZAMBIK"]
[null,null,null," ogółem",null,null,null,null,null,null,null,null,null,null,null,null,null,null,null,null,null,null,null,null,null,null,null,null,null,null,null,null,null,"MYANMAR (BURMA)"]
[null,null,null," w tym kondygnacji",null,null,null," - od 1,40 do 2,20 m",null,null,null,null,null,null,null,null," 66. ",null,null,null,null,null,null,null,null,null,null,null,null,null,null,null,null,"NAMIBIA"]
[null,null,null," o wysokości:",null,null,null,null,null,null,null,null,null,null,null,null,null,null,null,null,null,null,null,null,null,null,null,null,null,null,null,null,null,"NAURU"]
[null,null,null,null,null,null,null," - powyżej 2,20 m",null,null,null,null,null,null,null,null," 67. ",null,null,null,null,null,null,null,null,null,null,null,null,null,null,null,null,"NEPAL"]
[null,null,null,null,null,null,null,null,null,null,null,null,null,null,null,null,null,null,null,null,null,null,null,null,null,null,null,null,null,null,null,null,null,"NIDERLANDY (HOLANDIA)"]
[null,null,null," Związane z udzielaniem świadczeń zdrowotnych w",null,null,null,null,null,null,null,null,null,null,null,null," 68. ",null,null,null," 69. ",null,null,null,null,null,null," 70. ",null,null,null,null,null,"NIEMCY"]
[null,null,null," rozumieniu przepisów o działalności leczniczej, zajęte",null,null,null,null,null,null,null,null,null,null,null,null,{"$f":"Q152+Q154","v":0},null,null,null,null,null,null,null,null,null,null,{"$f":"Q149*U149/12*(13-S35)","v":0},null,null,null,null,null,"NIGER"]
[null,null,null," przez podmioty udzielające tych świadczeń - ogółem",null,null,null,null,null,null,null,null,null,null,null,null,null,null,null,null,null,null,null,null,null,null,null,null,null,null,null,null,null,"NIGERIA"]
[null,null,null," w tym kondygnacji",null,null,null," - od 1,40 do 2,20 m",null,null,null,null,null,null,null,null," 71. ",null,null,null,null,null,null,null,null,null,null,null,null,null,null,null,null,"NIKARAGUA"]
[null,null,null," o wysokości:",null,null,null,null,null,null,null,null,null,null,null,null,null,null,null,null,null,null,null,null,null,null,null,null,null,null,null,null,null,"NIUE"]
[null,null,null,null,null,null,null," - powyżej 2,20 m",null,null,null,null,null,null,null,null," 72. ",null,null,null,null,null,null,null,null,null,null,null,null,null,null,null,null,"NORFOLK"]
[null,null,null,null,null,null,null,null,null,null,null,null,null,null,null,null,null,null,null,null,null,null,null,null,null,null,null,null,null,null,null,null,null,"NORWEGIA"]
[null,null,null," Pozostałe, w tym zajęte na prowadzenie odpłatnej",null,null,null,null,null,null,null,null,null,null,null,null," 73. ",null,null,null," 74. ",null,null,null,null,null,null," 75. ",null,null,null,null,null,"NOWA KALEDONIA"]
[null,null,null," statutowej działalności pożytku publicznego przez",null,null,null,null,null,null,null,null,null,null,null,null,{"$f":"Q159+Q161","v":0},null,null,null,null,null,null,null,null,null,null,{"$f":"Q156*U156/12*(13-S35)","v":0},null,null,null,null,null,"NOWA ZELANDIA"]
[null,null,null," organizacje pożytku publicznego - ogółem",null,null,null,null,null,null,null,null,null,null,null,null,null,null,null,null,null,null,null,null,null,null,null,null,null,null,null,null,null,"OKUPOWANE TERYTORIUM PALESTYNY"]
[null,null,null," w tym kondygnacji",null,null,null," - od 1,40 do 2,20 m",null,null,null,null,null,null,null,null," 76. ",null,null,null,null,null,null,null,null,null,null,null,null,null,null,null,null,"OMAN"]
[null,null,null," o wysokości:",null,null,null,null,null,null,null,null,null,null,null,null,null,null,null,null,null,null,null,null,null,null,null,null,null,null,null,null,null,"PAKISTAN"]
[null,null,null,null,null,null,null," - powyżej 2,20 m",null,null,null,null,null,null,null,null," 77. ",null,null,null,null,null,null,null,null,null,null,null,null,null,null,null,null,"PALAU"]
[null,null,null,null,null,null,null,null,null,null,null,null,null,null,null,null,null,null,null,null,null,null,null,null,null,null,null,null,null,null,null,null,null,"PANAMA"]
[null,null," D.2.1. INNE BUDYNKI LUB ICH CZĘŚCI (1) Należy wypełnić tylko dla rodzajów przedmiotów opodatkowania innych niż",null,null,null,null,null,null,null,null,null,null,null,null,null,null,null,null,null,null,null,null,null,null,null,null,null,null,null,null,null,null,"PAPUA NOWA GWINEA"]
[null,null,null," określone w części D.2. Podać nazwę rodzaju przedmiotu opodatkowania lub jednostkę redakcyjną - zgodnie z uchwałą rady gminy.",null,null,null,null,null,null,null,null,null,null,null,null,null,null,null,null,null,null,null,null,null,null,null,null,null,null,null,null,null,"PARAGWAJ"]
[null,null,null," 78. Rodzaj przedmiotu opodatkowania",null,null,null,null,null,null,null,null,null,null,null,null," 79. ",null,null,null," 80. ",null,null,null,null,null,null," 81. ",null,null,null,null,null,"PERU"]
[null,null,null,null,null,null,null,null,null,null,null,null,null,null,null,null,{"$f":"Q167+Q169","v":0},null,null,null,null,null,null,null,null,null,null,{"$f":"Q165*U165/12*(13-S35)","v":0},null,null,null,null,null,"PITCAIRN"]
[null,null,null," w tym kondygnacji",null,null,null," - od 1,40 do 2,20 m",null,null,null,null,null,null,null,null," 82. ",null,null,null,null,null,null,null,null,null,null,null,null,null,null,null,null,"POLINEZJA FRANCUSKA"]
[null,null,null," o wysokości:",null,null,null,null,null,null,null,null,null,null,null,null,null,null,null,null,null,null,null,null,null,null,null,null,null,null,null,null,null,"POŁUDNIOWA GEORGIA I POŁUD.WYSPY SANDWICH"]
[null,null,null,null,null,null,null," - powyżej 2,20 m 83.",null,null,null,null,null,null,null,null," 83. ",null,null,null,null,null,null,null,null,null,null,null,null,null,null,null,null,"PORTUGALIA"]
[null,null,null,null,null,null,null,null,null,null,null,null,null,null,null,null,null,null,null,null,null,null,null,null,null,null,null,null,null,null,null,null,null,"PORTORYKO"]
[null,null,null," 84. Rodzaj przedmiotu opodatkowania",null,null,null,null,null,null,null,null,null,null,null,null," 85. ",null,null,null," 86. ",null,null,null,null,null,null," 87. ",null,null,null,null,null,"REP.ŚRODKOWOAFRYKAŃ\u0083SKA"]
[null,null,null,null,null,null,null,null,null,null,null,null,null,null,null,null,{"$f":"Q173+Q175","v":0},null,null,null,null,null,null,null,null,null,null,{"$f":"Q171*U171/12*(13-S35)","v":0},null,null,null,null,null,"REPUBLIKA CZESKA"]
[null,null,null," w tym kondygnacji",null,null,null," - od 1,40 do 2,20 m",null,null,null,null,null,null,null,null," 88. ",null,null,null,null,null,null,null,null,null,null,null,null,null,null,null,null,"REPUBLIKA KOREI"]
[null,null,null," o wysokości:",null,null,null,null,null,null,null,null,null,null,null,null,null,null,null,null,null,null,null,null,null,null,null,null,null,null,null,null,null,"REPUBLIKA POŁUDNIOWEJ AFRYKI"]
[null,null,null,null,null,null,null," - powyżej 2,20 m",null,null,null,null,null,null,null,null," 89.",null,null,null,null,null,null,null,null,null,null,null,null,null,null,null,null,"REUNION"]
[null,null,null,null,null,null,null,null,null,null,null,null,null,null,null,null,null,null,null,null,null,null,null,null,null,null,null,null,null,null,null,null,null,"ROSJA"]
[null,null," D.2.2. INNE BUDYNKI LUB ICH CZĘŚCI (2) Należy wypełnić tylko dla rodzajów przedmiotów opodatkowania innych niż",null,null,null,null,null,null,null,null,null,null,null,null,null,null,null,null,null,null,null,null,null,null,null,null,null,null,null,null,null,null,"RUMUNIA"]
[null,null,null," określone w części C.2. Podać nazwę rodzaju przedmiotu opodatkowania lub jednostkę redakcyjną - zgodnie z uchwałą rady gminy.",null,null,null,null,null,null,null,null,null,null,null,null,null,null,null,null,null,null,null,null,null,null,null,null,null,null,null,null,null,"RWANDA"]
[null,null,null," 78. Rodzaj przedmiotu opodatkowania",null,null,null,null,null,null,null,null,null,null,null,null," 79. ",null,null,null," 80. ",null,null,null,null,null,null," 81. ",null,null,null,null,null,"SAHARA ZACHODNIA"]
[null,null,null,null,null,null,null,null,null,null,null,null,null,null,null,null,{"$f":"Q181+Q190","v":0},null,null,null,null,null,null,null,null,null,null,{"$f":"Q179*U179/12*(13-S35)","v":0},null,null,null,null,null,"SAINT BARTHELEMY"]
[null,null,null," w tym kondygnacji",null,null,null," - od 1,40 do 2,20 m",null,null,null,null,null,null,null,null," 82. ",null,null,null,null,null,null,null,null,null,null,null,null,null,null,null,null,"SAINT KITTS I NEVIS"]
[null,null,null," o wysokości:",null,null,null,null,null,null,null,null,null,null,null,null,null,null,null,null,null,null,null,null,null,null,null,null,null,null,null,null,null,"SAINT LUCIA"]
[null,null,null,null,null,null,null,null,null,null,null,null,null,null,null,null,null,null,null,null,null,null,null,null,null,null,null,null,null,null,null,null,null,"SAINT MARTIN"]
[null,null,null,null,null,null,null,null,null,null,null,null,null,null,null,null,null,null,null,null,null,null,null,null,null,"DN-1(1)",null,null,null,"3/5",null,null,null,"SAINT VINCENT I GRENADYNY"]
[null,null,null,null,null,null,null,null,null,null,null,null,null,null,null,null,null,null,null,null,null,null,null,null,null,null,null,null,null,null,null,null,null,"SALWADOR"]
[null,null,null,null,null,null,null,null,null,null,null,null,null,null,null,null,null,null,null,null,null,null,null,null,null,null,null,null,null,null,null,null,null,"SAMOA"]
[null,null,null,null,null,null,null,null,null,null,null,null,null,null,null,null,null,null,null,null,null,null,null,null,null,null,null,null,null,null,null,null,null,"SAMOA AMERYKAŃ\u0083SKIE"]
[null,null," WYPEŁNIĆ DUŻYMI, DRUKOWANYMI LITERAMI, CZARNYM LUB NIEBIESKIM KOLOREM.",null,null,null,null,null,null,null,null,null,null,null,null,null,null,null,null,null,null,null,null,null,null,null,null,null,null,null,null,null,null,"SAN MARINO"]
[null,null,null,null,null,null,null,null,null,null,null,null,null,null,null,null,null,null,null,null,null,null,null,null,null,null,null,null,null,null,null,null,null,"SENEGAL"]
[null,null,null,null,null,null,null," - powyżej 2,20 m",null,null,null,null,null,null,null,null," 83. ",null,null,null,null,null,null,null,null,null,null,null,null,null,null,null,null,"SERBIA"]
[null,null,null,null,null,null,null,null,null,null,null,null,null,null,null,null,null,null,null,null,null,null,null,null,null,null,null,null,null,null,null,null,null,"SESZELE"]
[null,null,null," 84. Rodzaj przedmiotu opodatkowania",null,null,null,null,null,null,null,null,null,null,null,null," 85. ",null,null,null," 86. ",null,null,null,null,null,null," 87. ",null,null,null,null,null,"SIERRA LEONE"]
[null,null,null,null,null,null,null,null,null,null,null,null,null,null,null,null,{"$f":"Q195+Q197","v":0},null,null,null,null,null,null,null,null,null,null,{"$f":"Q192*U192/12*(13-S35)","v":0},null,null,null,null,null,"SINGAPUR"]
[null,null,null,null,null,null,null,null,null,null,null,null,null,null,null,null,null,null,null,null,null,null,null,null,null,null,null,null,null,null,null,null,null,"SŁOWACJA"]
[null,null,null," w tym kondygnacji",null,null,null," - od 1,40 do 2,20 m",null,null,null,null,null,null,null,null," 88. ",null,null,null,null,null,null,null,null,null,null,null,null,null,null,null,null,"SŁOWENIA"]
[null,null,null," o wysokości:",null,null,null,null,null,null,null,null,null,null,null,null,null,null,null,null,null,null,null,null,null,null,null,null,null,null,null,null,null,"SOMALIA"]
[null,null,null,null,null,null,null," - powyżej 2,20 m",null,null,null,null,null,null,null,null," 89. ",null,null,null,null,null,null,null,null,null,null,null,null,null,null,null,null,"SRI LANKA"]
[null,null,null,null,null,null,null,null,null,null,null,null,null,null,null,null,null,null,null,null,null,null,null,null,null,null,null,null,null,null,null,null,null,"SAINT PIERRE I MIQUELON"]
[null,null," D.3. BUDOWLE LUB ICH CZĘŚCI ZWIĄZANE Z PROWADZENIEM DZIAŁALNOŚCI",null,null,null,null,null,null,null,null,null,null,null,null,null,null,null,null,null,null,null,null,null,null,null,null,null,null,null,null,null,null,"STANY ZJEDNOCZONE AMERYKI"]
[null,null,"       GOSPODARCZEJ",null,null,null,null,null,null,null,null,null,null,null,null,null,null,null,null,null,null,null,null,null,null,null,null,null,null,null,null,null,null,"SUAZI"]
[null,null,null,null,null,null,null,null,null,null,null,null,null,null,null,null," Wartość",null,null,null," Stawka podatku",null,null,null,null,null,null," Kwota podatku za okres,",null,null,null,null,null,"SUDAN"]
[null,null,null,null,null,null,null,null,null,null,null,null,null,null,null,null," (po zaokrągleniu do pełnych złotych)",null,null,null,null,null,null,null,null,null,null," którego dotyczy deklaracja5)",null,null,null,null,null,"SURINAM"]
[null,null,null,null,null,null,null,null,null,null,null,null,null,null,null,null," zł ",null,null,null," % ",null,null,null,null,null,null," zł      gr ",null,null,null,null,null,"SVALBARD I JAN MAYEN"]
[null,null,null," Budowle",null,null,null,null,null,null,null,null,null,null,null,null," 90. ",null,null,null," 91. ",null,null,null,null,null,null," 92. ",null,null,null,null,null,"ŚWIĘTA HELENA"]
[null,null,null,null,null,null,null,null,null,null,null,null,null,null,null,null,null,null,null,null,null,null,null,null,null,null,null,{"$f":"Q204*U204/100/12*(13-S35)","v":0},null,null,null,null,null,"SYRIA"]
[null,null," D.3.1. INNE BUDOWLE LUB ICH CZĘŚCI (1) Należy wypełnić tylko dla rodzajów przedmiotów opodatkowania innych niż",null,null,null,null,null,null,null,null,null,null,null,null,null,null,null,null,null,null,null,null,null,null,null,null,null,null,null,null,null,null,"SZWAJCARIA"]
[null,null,null," określone w części D.3. Podać nazwę rodzaju przedmiotu opodatkowania lub jednostkę redakcyjną - zgodnie z uchwałą rady gminy.",null,null,null,null,null,null,null,null,null,null,null,null,null,null,null,null,null,null,null,null,null,null,null,null,null,null,null,null,null,"SZWECJA"]
[null,null,null," 93. Rodzaj przedmiotu opodatkowania",null,null,null,null,null,null,null,null,null,null,null,null," 94. ",null,null,null," 95. ",null,null,null,null,null,null," 96. ",null,null,null,null,null,"TADŻYKISTAN"]
[null,null,null,null,null,null,null,null,null,null,null,null,null,null,null,null,null,null,null,null,null,null,null,null,null,null,null,{"$f":"Q208*U208/100/12*(13-S35)","v":0},null,null,null,null,null,"TAJLANDIA"]
[null,null," D.3.2. INNE BUDOWLE LUB ICH CZĘŚCI (2) Należy wypełnić tylko dla rodzajów przedmiotów opodatkowania innych niż",null,null,null,null,null,null,null,null,null,null,null,null,null,null,null,null,null,null,null,null,null,null,null,null,null,null,null,null,null,null,"TAJWAN"]
[null,null,null," określone w części D.3. Podać nazwę rodzaju przedmiotu opodatkowania lub jednostkę redakcyjną - zgodnie z uchwałą rady gminy.",null,null,null,null,null,null,null,null,null,null,null,null,null,null,null,null,null,null,null,null,null,null,null,null,null,null,null,null,null,"TANZANIA"]
[null,null,null," 93. Rodzaj przedmiotu opodatkowania",null,null,null,null,null,null,null,null,null,null,null,null," 94. ",null,null,null," 95. ",null,null,null,null,null,null," 96. ",null,null,null,null,null,"TOGO"]
[null,null,null,null,null,null,null,null,null,null,null,null,null,null,null,null,null,null,null,null,null,null,null,null,null,null,null,{"$f":"Q212*U212/100/12*(13-S35)","v":0},null,null,null,null,null,"TOKELAU"]
[null,null,null,null,null,null,null,null,null,null,null,null,null,null,null,null,null,null,null,null,null,null,null,null,null,null,null,null,null,null,null,null,null,"TONGA"]
[null,null," E. WYSOKOŚĆ ZOBOWIĄZANIA PODATKOWEGO I RAT PODATKU",null,null,null,null,null,null,null,null,null,null,null,null,null,null,null,null,null,null,null,null,null,null,null,null,null,null,null,null,null,null,"TRYNIDAD I TOBAGO"]
[null,null,null," Łączna kwota podatku za okres, którego dotyczy deklaracja",null,null,null,null,null,null,null,null,null,null,null,null,null,null,null,null,null,null,null," 97. ",null,null,null,null,null,null,null,null,null,"TUNEZJA"]
[null,null,null," Suma kwot podatku z części D.1, D.2 i D.3.",null,null,null,null,null,null,null,null,null,null,null,null,null,null,null,null,null,null,null,{"$f":"AB81+AB84+AB87+AB90+AB104+AB106+AB110+AB112+AB122+AB135+AB142+AB149+AB156+AB165+AB171+AB179+AB192+AB204+AB208+AB212","v":0},null,null,null,null,null,null,null,null,null,"TURCJA"]
[null,null,null," Kwota podatku za miesiące nieobjęte deklaracją",null,null,null,null,null,null,null,null,null,null,null,null,null,null,null,null,null,null,null," 98. ",null,null,null,null,null,null,null,null,null,"TURKMENISTAN"]
[null,null,null," Jeżeli w poz. 5 zaznaczono kwadrat 1 należy wpisać 0.",null,null,null,null,null,null,null,null,null,null,null,null,null,null,null,null,null,null,null,null,null,null,null,null,null,null,null,null,null,"TUVALU"]
[null,null,null," Wysokość zobowiązania podatkowego7)",null,null,null,null,null,null,null,null,null,null,null,null,null,null,null,null,null,null,null," 99. ",null,null,null,null,null,null,null,null,null,"UGANDA"]
[null,null,null," Suma kwot z poz. 97 i 98 (po zaokrągleniu do pełnych złotych).",null,null,null,null,null,null,null,null,null,null,null,null,null,null,null,null,null,null,null,{"$f":"X216+X218","v":0},null,null,null,null,null,null,null,null,null,"UKRAINA"]
[null,null,null,"Suma kwot z poz. od 100 do 111 musi być równa kwocie z poz. 997). W przypadku korekty deklaracji raty, które nie zostały objęte korektą,",null,null,null,null,null,null,null,null,null,null,null,null,null,null,null,null,null,null,null,null,null,null,null,null,null,null,null,null,null,"URUGWAJ"]
[null,null,null,"pozostają bez zmian.",null,null,null,null,null,null,null,null,null,null,null,null,null,null,null,null,null,null,null,null,null,null,null,null,null,null,null,null,null,"UZBEKISTAN"]
[null,null,null," Kwota I raty",null,null,null,null,null,null," 100. ",null,null,null,null,null,null,null," Kwota II raty",null,null,null,null,null," 101. ",null,null,null,null,null,null,null,null,"VANUATU"]
[null,null,null,null,null,null,null,null,null,null,null,null,null,null,null,null,null,null,null,null,null,null,null,null,null,null,null,null,null,null,null,null,null,"WALLIS I FUTUNA"]
[null,null,null," Kwota III raty",null,null,null,null,null,null," 102. ",null,null,null,null,null,null,null," Kwota IV raty",null,null,null,null,null," 103. ",null,null,null,null,null,null,null,null,"WATYKAN"]
[null,null,null,null,null,null,null,null,null,null,null,null,null,null,null,null,null,null,null,null,null,null,null,null,null,null,null,null,null,null,null,null,null,"WĘGRY"]
[null,null,null," Kwota V raty",null,null,null,null,null,null," 104. ",null,null,null,null,null,null,null," Kwota VI raty",null,null,null,null,null," 105. ",null,null,null,null,null,null,null,null,"WENEZUELA"]
[null,null,null,null,null,null,null,null,null,null,null,null,null,null,null,null,null,null,null,null,null,null,null,null,null,null,null,null,null,null,null,null,null,"WIELKA BRYTANIA"]
[null,null,null," Kwota VII raty",null,null,null,null,null,null," 106. ",null,null,null,null,null,null,null," Kwota VIII raty",null,null,null,null,null," 107. ",null,null,null,null,null,null,null,null,"WIETNAM"]
[null,null,null,null,null,null,null,null,null,null,null,null,null,null,null,null,null,null,null,null,null,null,null,null,null,null,null,null,null,null,null,null,null,"WŁOCHY"]
[null,null,null," Kwota IX raty",null,null,null,null,null,null," 108. ",null,null,null,null,null,null,null," Kwota X raty",null,null,null,null,null," 109. ",null,null,null,null,null,null,null,null,"WSCHODNI TIMOR"]
[null,null,null,null,null,null,null,null,null,null,null,null,null,null,null,null,null,null,null,null,null,null,null,null,null,null,null,null,null,null,null,null,null,"WYBRZEŻE KOŚCI SŁONIOWEJ"]
[null,null,null," Kwota XI raty",null,null,null,null,null,null," 110. ",null,null,null,null,null,null,null," Kwota XII raty",null,null,null,null,null," 111. ",null,null,null,null,null,null,null,null,"WYSPA BOUVETA"]
[null,null,null,null,null,null,null,null,null,null,null,null,null,null,null,null,null,null,null,null,null,null,null,null,null,null,null,null,null,null,null,null,null,"WYSPA BOŻEGO NARODZENIA"]
[null,null,null,null,null,null,null,null,null,null,null,null,null,null,null,null,null,null,null,null,null,null,null,null,null,null,null,null,null,null,null,null,null,"WYSPA MAN"]
[null,null," F. INFORMACJA O ZAŁĄCZNIKACH Deklarację należy składać wraz z odpowiednimi załącznikami, które stanowią jej integralną",null,null,null,null,null,null,null,null,null,null,null,null,null,null,null,null,null,null,null,null,null,null,null,null,null,null,null,null,null,null,"WYSPY COOKA"]
[null,null,null,"część.",null,null,null,null,null,null,null,null,null,null,null,null,null,null,null,null,null,null,null,null,null,null,null,null,null,null,null,null,null,"WYSPY DZIEWICZE-USA"]
[null,null,null," 112. Liczba załączników ZDN-1",null,null,null,null,null,null,null,null,null,null,null,null,null,null," 113. Liczba załączników ZDN-2",null,null,null,null,null,null,null,null,null,null,null,null,null,null,"WYSPY DZIEWICZE-W.B."]
[null,null,null,null,null,null,null,null,null,null,null,null,null,null,null,null,null,null,null,null,null,null,null,null,null,null,null,null,null,null,null,null,null,"WYSPY HEARD I MCDONALD"]
[null,null,null,null,null,null,null,null,null,null,null,null,null,null,null,null,null,null,null,null,null,null,null,null,null,null,null,null,null,null,null,null,null,"WYSPY KOKOSOWE (KEELINGA)"]
[null,null," G. KONTAKT DO OSOBY ODPOWIEDZIALNEJ ZA SPORZĄDZENIE DEKLARACJI",null,null,null,null,null,null,null,null,null,null,null,null,null,null,null,null,null,null,null,null,null,null,null,null,null,null,null,null,null,null,"WYSPY MARSHALLA"]
[null,null,"      I DODATKOWE INFORMACJE",null,null,null,null,null,null,null,null,null,null,null,null,null,null,null,null,null,null,null,null,null,null,null,null,null,null,null,null,null,null,"WYSPY OWCZE"]
[null,null,null,"Podanie informacji w części G nie jest obowiązkowe.",null,null,null,null,null,null,null,null,null,null,null,null,null,null,null,null,null,null,null,null,null,null,null,null,null,null,null,null,null,"WYSPY SALOMONA"]
[null,null,null," 114. Telefon",null,null,null,null,null,null,null,null,null,null,null,null,null,null," 115. E-mail",null,null,null,null,null,null,null,null,null,null,null,null,null,null,"WYSPY ŚWIĘTEGO TOMASZA I KSIĄŻĘCA"]
[null,null,null,null,null,null,null,null,null,null,null,null,null,null,null,null,null,null,null,null,null,null,null,null,null,null,null,null,null,null,null,null,null,"WYSPY TURKS I CAICOS"]
[null,null,null,null,null,null,null,null,null,null,null,null,null,null,null,null,null,null,null,null,null,null,null,null,null,null,null,null,null,null,null,null,null,"ZAMBIA"]
[null,null,"DN-1(1)",null,null,"4/5",null,null,null,null,null,null,null,null,null,null,null,null,null,null,null,null,null,null,null,null,null,null,null,null,null,null,null,"ZIELONY PRZYLĄDEK"]
[null,null,null,null,null,null,null,null,null,null,null,null,null,null,null,null,null,null,null,null,null,null,null,null,null,null,null,null,null,null,null,null,null,"ZIMBABWE"]
[null,null,null,null,null,null,null,null,null,null,null,null,null,null,null,null,null,null,null,null,null,null,null,null,null,null,null,null,null,null,null,null,null,"ZJEDNOCZONE EMIRATY ARABSKIE"]
[]
[null,null," WYPEŁNIĆ DUŻYMI, DRUKOWANYMI LITERAMI, CZARNYM LUB NIEBIESKIM KOLOREM."]
[]
[null,null,null," 116. Inne (np. określenie zdarzenia powodującego obowiązek złożenia deklaracji)"]
[]
[]
[null,null," H. PODPIS PODATNIKA I OSÓB REPREZENTUJĄCYCH PODATNIKA"]
[null,null," H.1. PODPIS PODATNIKA"]
[null,null,null," 117. Pierwsze imię",null,null,null,null,null,null,null,null,null,null,null,null,null,null," 118. Nazwisko"]
[]
[null,null,null," 119. Data wypełnienia (dzień - miesiąc - rok)",null,null,null,null,null,null,null,null,null,null,null,null,null,null," 120. Podpis podatnika"]
[]
[null,null," H.2. PODPISY OSÓB REPREZENTUJĄCYCH PODATNIKA"]
[null,null,null," 121. Pierwsze imię",null,null,null,null,null,null,null,null,null,null,null,null,null,null," 122. Nazwisko"]
[]
[null,null,null," 123. Data wypełnienia (dzień - miesiąc - rok)",null,null,null,null,null,null,null,null,null,null,null,null,null,null," 124. Podpis osoby reprezentującej podatnika"]
[]
[null,null,null," 125. Pierwsze imię",null,null,null,null,null,null,null,null,null,null,null,null,null,null," 126. Nazwisko"]
[]
[null,null,null," 127. Data wypełnienia (dzień - miesiąc - rok)",null,null,null,null,null,null,null,null,null,null,null,null,null,null," 128. Podpis osoby reprezentującej podatnika"]
[]
[]
[null,null," I. ADNOTACJE ORGANU PODATKOWEGO"]
[null,null,null," 129. Uwagi organu podatkowego"]
[null,null,null," Objaśnienia"]
[null,null,null,"1)"," Numer PESEL wpisują podatnicy będący osobami fizycznymi objętymi rejestrem PESEL, nieprowadzący działalności gospodarczej lub"]
[null,null,null,null," niebędący zarejestrowanymi podatnikami podatku od towarów i usług. Identyfikator podatkowy NIP wpisują pozostali podatnicy."]
[null,null,null,"2)"," Za wyjątkiem poz. 5 kwadrat 1, o ile jest mowa o deklaracji, rozumie się przez to również korektę deklaracji."]
[null,null,null,"3)"," Zgodnie z przepisami Ordynacji podatkowej."]
[null,null,null,"4)"," Powierzchnię w ha należy wykazać wyłącznie dla gruntów pod wodami powierzchniowymi stojącymi lub wodami powierzchniowymi"]
[null,null,null,null," płynącymi jezior i zbiorników sztucznych (z dokładnością do czterech miejsc po przecinku)."]
[null,null,null,"5)"," Kwotę podatku należy obliczyć, mnożąc podstawę opodatkowania przez stawkę podatku, proporcjonalnie do liczby miesięcy, których"]
[null,null,null,null," dotyczy deklaracja."]
[null,null,null,"6)"," W przypadku korekty deklaracji należy wpisać sumę miesięcznych kwot podatku za miesiące nieobjęte składaną korektą deklaracji."]
[null,null,null,"7)"," Kwotę podatku (rat podatku) zaokrągla się do pełnych złotych, w ten sposób, że końcówki kwot wynoszące mniej niż 50 groszy pomija"]
[null,null,null,null," się, a końcówki kwot wynoszące 50 i więcej groszy podwyższa się do pełnych złotych."]
[null,null,null,null," W ostatniej racie następuje wyrównanie do kwoty zobowiązania podatkowego (poz. 99)."]
[null,null,null,null," Obliczony w deklaracji podatek należy wpłacać w ratach proporcjonalnych do czasu trwania obowiązku podatkowego w terminach: I rata"]
[null,null,null,null," płatna do dnia 31 stycznia, a następne do dnia 15 każdego miesiąca."]
[null,null,null,null," W przypadku gdy kwota podatku nie przekracza 100 zł, podatek jest płatny jednorazowo w terminie płatności pierwszej raty."]
[null,null," Pouczenia"]
[null,null,"  W przypadku niewpłacenia w obowiązujących terminach zobowiązania podatkowego lub raty podatku lub wpłacenia ich w niepełnej wysokości,"]
[null,null,"  niniejsza deklaracja stanowi podstawę do wystawienia tytułu wykonawczego, zgodnie z przepisami o postępowaniu egzekucyjnym w administracji."]
[null,null,"  Za podanie nieprawdy lub zatajenie prawdy i przez to narażenie podatku na uszczuplenie grozi odpowiedzialność przewidziana w Kodeksie karnym"]
[null,null,"  skarbowym."]
[null,null,null,null,null,null,null,null,null,null,null,null,null,null,null,null,null,null,null,null,null,null,null,null,null,"DN-1(1)",null,null,null,"5/5"]

{"sheet":"ZDN-1","index":1,"n_rows":69,"n_cols":24,"rows_kept":69,"cut":false,"hidden":false,"merged":[[67,3,67,19],[55,12,56,13],[55,16,56,17],[55,18,56,19],[66,3,66,19],[58,18,58,19],[59,12,59,13],[59,16,59,17],[59,18,59,19],[58,12,58,13],[33,3,33,19],[35,3,35,19],[34,3,34,19],[15,3,15,10],[16,3,16,10],[15,11,15,19],[16,11,16,19],[20,15,21,15],[23,12,23,13],[23,16,23,17],[38,1,38,12],[38,13,38,20],[0,2,0,19],[1,2,1,19],[2,2,2,19],[3,2,3,19],[6,2,6,19],[7,2,7,19],[8,2,8,19],[11,2,11,19],[12,2,12,19],[13,2,13,19],[17,2,17,19],[18,2,18,19],[14,2,14,7],[14,8,14,19],[23,18,23,19],[24,3,24,9],[24,18,24,19],[24,10,24,11],[24,12,24,13],[24,16,24,17],[47,3,47,9],[47,10,47,11],[47,12,47,13],[47,16,47,17],[47,18,47,19],[46,3,46,9],[46,10,46,11],[46,12,46,13],[46,16,46,17],[10,17,10,19],[41,2,41,19],[42,2,42,19],[54,2,54,19],[19,2,19,19],[37,2,37,19],[39,2,39,19],[40,2,40,19],[23,3,23,9],[23,10,23,11],[69,2,69,19],[4,2,4,5],[4,6,4,7],[4,8,4,12],[5,2,5,5],[5,6,5,12],[4,13,5,19],[9,2,10,16],[9,17,9,19],[25,16,25,17],[27,16,27,17],[25,18,25,19],[26,3,26,9],[26,10,26,11],[26,12,26,13],[26,16,26,17],[26,18,26,19],[25,3,25,9],[25,10,25,11],[25,12,25,13],[29,16,29,17],[27,18,27,19],[28,3,28,9],[28,10,28,11],[28,12,28,13],[28,16,28,17],[28,18,28,19],[27,3,27,9],[27,10,27,11],[27,12,27,13],[36,17,36,18],[29,18,29,19],[30,3,30,9],[30,10,30,11],[30,12,30,13],[30,16,30,17],[30,18,30,19],[29,3,29,9],[29,10,29,11],[29,12,29,13],[49,3,49,9],[49,10,49,11],[49,12,49,13],[49,16,49,17],[48,3,48,9],[48,10,48,11],[48,12,48,13],[48,16,48,17],[51,3,51,9],[51,10,51,11],[51,12,51,13],[51,16,51,17],[50,3,50,9],[50,10,50,11],[50,12,50,13],[50,16,50,17],[53,3,53,9],[53,10,53,11],[53,12,53,13],[53,16,53,17],[53,18,53,19],[52,3,52,9],[52,10,52,11],[52,12,52,13],[52,16,52,17],[58,16,58,17],[62,9,62,11],[60,18,60,19],[61,12,61,13],[61,16,61,17],[61,18,61,19],[60,12,60,13],[60,16,60,17],[62,18,62,19],[64,12,64,13],[64,16,64,17],[63,12,63,13],[63,16,63,17],[63,18,63,19],[62,16,62,17],[62,12,62,13],[20,2,21,2],[20,3,20,9],[21,3,21,9],[20,10,20,11],[21,10,21,11],[65,18,65,19],[64,3,64,6],[64,7,64,8],[64,9,64,11],[65,3,65,6],[22,18,22,19],[22,16,22,17],[22,12,22,13],[22,10,22,11],[20,12,21,13],[20,14,21,14],[20,16,21,17],[20,18,21,19],[22,3,22,9],[43,2,44,2],[43,3,43,9],[43,10,43,11],[44,3,44,9],[44,10,44,11],[31,3,31,19],[32,3,32,19],[36,2,36,16],[43,12,44,13],[43,14,44,14],[43,16,44,17],[43,18,44,19],[45,3,45,9],[45,10,45,11],[45,12,45,13],[45,16,45,17],[45,18,45,19],[57,12,57,13],[57,16,57,17],[57,18,57,19],[48,18,48,19],[49,18,49,19],[52,18,52,19],[50,18,50,19],[51,18,51,19],[46,18,46,19],[55,2,56,2],[55,3,55,6],[56,3,56,6],[55,7,55,8],[56,7,56,8],[55,9,55,11],[56,9,56,11],[68,2,68,3],[68,5,68,19],[58,3,58,6],[58,7,58,8],[58,9,58,11],[59,3,59,6],[59,7,59,8],[64,18,64,19],[65,12,65,13],[65,16,65,17],[57,3,57,6],[57,7,57,8],[57,9,57,11],[60,3,60,6],[60,7,60,8],[60,9,60,11],[59,9,59,11],[61,3,61,6],[65,7,65,8],[65,9,65,11],[61,7,61,8],[61,9,61,11],[63,3,63,6],[63,7,63,8],[63,9,63,11],[62,3,62,6],[62,7,62,8]]}
[null,null,null,null,null,null,null,null,null,null,null,null,null,null,null,null,null,null,null,null,null,null,null,"własność"]
[null,null,null,null,null,null,null,null,null,null,null,null,null,null,null,null,null,null,null,null,null,null,null,"użytkowanie wieczyste"]
[null,null," WYPEŁNIĆ DUŻYMI, DRUKOWANYMI LITERAMI, CZARNYM LUB NIEBIESKIM KOLOREM.",null,null,null,null,null,null,null,null,null,null,null,null,null,null,null,null,null,null,null,null,"posiadanie samoistne"]
[null,null,null,null,null,null,null,null,null,null,null,null,null,null,null,null,null,null,null,null,null,null,null,"posiadanie zależne"]
[null,null,"1. Identyfikator podatkowy NIP",null,null,null," /numer PESEL",null," (niepotrzebne skreślić)",null,null,null,null," 2. Nr dokumentu",null,null,null,null,null,null,null,null,null,"posiadanie bez tytułu prawnego"]
[null,null,null,null,null,null,{"$f":"'DN-1'!E7","v":0}]
[null,null,"    ZDN-1"]
[null,null,"ZAŁĄCZNIK DO DEKLARACJI NA PODATEK OD NIERUCHOMOŚCI"]
[null,null,"- DANE O PRZEDMIOTACH OPODATKOWANIA PODLEGAJĄCYCH OPODATKOWANIU"]
[null,null,null,null,null,null,null,null,null,null,null,null,null,null,null,null,null," 3. Nr załącznika"]
[null,null,null,null,null,null,null,null,null,null,null,null,null,null,null,null,null,1]
[]
[]
[null,null," A. DANE PODATNIKA WSKAZANEGO W CZĘŚCI C.1 DEKLARACJI DN-1"]
[null,null,null,null,null,null,null,null,"           * - dotyczy podatnika niebędącego osobą fizyczną            ** - dotyczy podatnika będącego osobą fizyczną"]
[null,null,null," 4. Nazwa pełna * / Nazwisko **",null,null,null,null,null,null,null," 5. Nazwa skrócona * / Pierwsze imię **"]
[null,null,null,{"$f":"'DN-1'!D47","v":0},null,null,null,null,null,null,null,{"$f":"'DN-1'!S47","v":0}]
[]
[null,null," B. DANE O POSZCZEGÓLNYCH PRZEDMIOTACH OPODATKOWANIA PODLEGAJĄCYCH OPODATKOWANIU"]
[null,null," B.1. GRUNTY"]
[null,null," Lp."," Położenie (adres, w tym dzielnica)",null,null,null,null,null,null," Nr księgi wieczystej",null,"Nr obrębu\n(arkusza\nmapy)2)",null," Nr działki","Powierzchnia w m2 /\nha3)","Stawka\nPodatku4)",null,"Forma władania5)"]
[null,null,null,null,null,null,null,null,null,null," (zbioru dokumentów)"]
[null,null,null,"a",null,null,null,null,null,null,"b",null,"c",null,"d","e","f",null,"g"]
[null,null,1]
[null,null,2]
[null,null,3]
[null,null,4]
[null,null,5]
[null,null,6]
[null,null,7]
[null,null,8]
[null,null,"1)","    Numer PESEL wpisują podatnicy będący osobami fizycznymi objętymi rejestrem PESEL, nieprowadzący działalności gospodarczej lub niebędący zarejestrowanymi podatnikami podatku od towarów i usług."]
[null,null,null,"    Identyfikator podatkowy NIP wpisują pozostali podatnicy."]
[null,null,"2)","    Numer obrębu należy podać wraz z numerem arkusza mapy ewidencyjnej w przypadku, gdy działki numerowane są w ramach arkusza mapy."]
[null,null,"3)","    Powierzchnię w ha należy wykazać wyłącznie w przypadku gruntów pod wodami powierzchniowymi stojącymi lub wodami powierzchniowymi płynącymi jezior i zbiorników sztucznych (z dokładnością"]
[null,null,null,"    do czterech miejsc po przecinku)."]
[null,null,null,null,null,null,null,null,null,null,null,null,null,null,null,null,null," ZDN-1(1)",null,"1/2"]
[]
[]
[]
[null,null," WYPEŁNIĆ DUŻYMI, DRUKOWANYMI LITERAMI, CZARNYM LUB NIEBIESKIM KOLOREM."]
[]
[null,null," B.2. BUDYNKI LUB ICH CZĘŚCI"]
[null,null," Lp."," Położenie (adres, w tym dzielnica)",null,null,null,null,null,null," Nr księgi wieczystej",null,"Nr obrębu\n(arkusza\nmapy)2)",null," Nr działki"," Powierzchnia użytkowa","Stawka\nPodatku4)",null,"Forma władania5)"]
[null,null,null,null,null,null,null,null,null,null," (zbioru dokumentów)",null,null,null,null,"w m2"]
[null,null,null,"a",null,null,null,null,null,null,"b",null,"c",null,"d","e","f",null,"g"]
[null,null,1]
[null,null,2]
[null,null,3]
[null,null,4]
[null,null,5]
[null,null,6]
[null,null,7]
[null,null,8]
[null,null," B.3. BUDOWLE LUB ICH CZĘŚCI ZWIĄZANE Z PROWADZENIEM DZIAŁALNOŚCI GOSPODARCZEJ"]
[null,null," Lp."," Nazwa budowli",null,null,null," Nr inwentarzowy",null," Położenie (adres, w tym dzielnica)",null,null,"Nr obrębu\n(arkusza\nmapy)2)",null," Nr działki"," Wartość w zł","Stawka\nPodatku4)",null,"Forma władania5)"]
[]
[null,null,null,"a",null,null,null,"b",null,"c",null,null,"d",null,"e","f","g",null,"h"]
[null,null,1]
[null,null,2]
[null,null,3]
[null,null,4]
[null,null,5]
[null,null,6]
[null,null,7]
[null,null,8]
[null,null,"4)","    Należy podać stawkę właściwą dla rodzaju przedmiotu opodatkowania zgodną z uchwałą rady gminy."]
[null,null,"5)","    Należy podać jedną z form władania: własność, użytkowanie wieczyste, posiadanie samoistne, posiadanie zależne lub posiadanie bez tytułu prawnego."]
[null,null," ZDN-1(1)",null,"2/2"]

{"sheet":"ZDN-2","index":2,"n_rows":69,"n_cols":20,"rows_kept":69,"cut":false,"hidden":false,"merged":[[60,3,60,6],[45,18,45,19],[57,12,57,13],[15,3,15,10],[16,3,16,10],[16,11,16,19],[15,11,15,19],[66,3,66,19],[67,3,67,19],[55,12,56,13],[33,3,33,19],[34,3,34,19],[57,7,57,8],[60,7,60,8],[60,9,60,11],[61,7,61,8],[61,9,61,11],[35,3,35,19],[55,16,56,17],[55,18,56,19],[61,3,61,6],[57,3,57,6],[57,9,57,11],[68,2,68,3],[68,5,68,19],[58,3,58,6],[58,7,58,8],[58,9,58,11],[59,3,59,6],[59,7,59,8],[64,18,64,19],[65,12,65,13],[65,16,65,17],[57,16,57,17],[57,18,57,19],[48,18,48,19],[49,18,49,19],[55,2,56,2],[55,3,55,6],[56,3,56,6],[55,7,55,8],[56,7,56,8],[47,18,47,19],[55,9,55,11],[56,9,56,11],[52,10,52,11],[52,12,52,13],[52,16,52,17],[50,18,50,19],[51,18,51,19],[51,3,51,9],[51,10,51,11],[43,14,44,14],[43,16,44,17],[43,18,44,19],[45,3,45,9],[45,10,45,11],[45,12,45,13],[45,16,45,17],[22,3,22,9],[43,2,44,2],[43,3,43,9],[43,10,43,11],[44,3,44,9],[44,10,44,11],[31,3,31,19],[32,3,32,19],[36,2,36,16],[43,12,44,13],[20,16,21,17],[20,18,21,19],[22,18,22,19],[22,16,22,17],[22,12,22,13],[22,10,22,11],[20,15,21,15],[20,3,20,9],[21,3,21,9],[20,10,20,11],[21,10,21,11],[20,12,21,13],[20,14,21,14],[64,3,64,6],[64,7,64,8],[64,9,64,11],[65,3,65,6],[64,12,64,13],[64,16,64,17],[65,7,65,8],[65,9,65,11],[62,18,62,19],[63,12,63,13],[63,16,63,17],[63,18,63,19],[62,16,62,17],[65,18,65,19],[63,3,63,6],[63,7,63,8],[63,9,63,11],[62,12,62,13],[62,3,62,6],[62,7,62,8],[62,9,62,11],[58,18,58,19],[59,12,59,13],[59,16,59,17],[59,18,59,19],[60,18,60,19],[61,12,61,13],[61,16,61,17],[61,18,61,19],[60,12,60,13],[60,16,60,17],[59,9,59,11],[58,12,58,13],[58,16,58,17],[52,18,52,19],[53,3,53,9],[53,10,53,11],[53,12,53,13],[53,16,53,17],[53,18,53,19],[52,3,52,9],[51,12,51,13],[51,16,51,17],[50,3,50,9],[50,10,50,11],[50,12,50,13],[50,16,50,17],[48,3,48,9],[48,10,48,11],[48,12,48,13],[48,16,48,17],[49,3,49,9],[49,10,49,11],[49,12,49,13],[49,16,49,17],[36,17,36,18],[29,18,29,19],[30,3,30,9],[30,10,30,11],[30,12,30,13],[30,16,30,17],[30,18,30,19],[29,3,29,9],[29,10,29,11],[29,12,29,13],[29,16,29,17],[27,18,27,19],[28,3,28,9],[28,10,28,11],[28,12,28,13],[28,16,28,17],[28,18,28,19],[27,3,27,9],[27,10,27,11],[27,12,27,13],[26,12,26,13],[26,16,26,17],[26,18,26,19],[25,3,25,9],[25,10,25,11],[25,12,25,13],[69,2,69,19],[4,2,4,5],[4,6,4,7],[4,8,4,12],[5,2,5,5],[5,6,5,12],[4,13,5,19],[9,2,10,16],[9,17,9,19],[25,16,25,17],[10,17,10,19],[41,2,41,19],[42,2,42,19],[54,2,54,19],[19,2,19,19],[37,2,37,19],[39,2,39,19],[40,2,40,19],[23,3,23,9],[23,10,23,11],[47,3,47,9],[47,10,47,11],[47,12,47,13],[47,16,47,17],[46,3,46,9],[46,10,46,11],[46,12,46,13],[46,16,46,17],[24,3,24,9],[24,18,24,19],[24,10,24,11],[24,12,24,13],[24,16,24,17],[46,18,46,19],[27,16,27,17],[25,18,25,19],[26,3,26,9],[26,10,26,11],[12,2,12,19],[13,2,13,19],[17,2,17,19],[18,2,18,19],[23,12,23,13],[23,16,23,17],[23,18,23,19],[14,2,14,7],[14,8,14,19],[20,2,21,2],[38,1,38,12],[38,13,38,20],[0,2,0,19],[1,2,1,19],[2,2,2,19],[3,2,3,19],[6,2,6,19],[7,2,7,19],[8,2,8,19],[11,2,11,19]]}
[]
[]
[null,null," WYPEŁNIĆ DUŻYMI, DRUKOWANYMI LITERAMI, CZARNYM LUB NIEBIESKIM KOLOREM."]
[]
[null,null,"1. Identyfikator podatkowy NIP",null,null,null," /numer PESEL",null," (niepotrzebne skreślić)",null,null,null,null," 2. Nr dokumentu"]
[null,null,null,null,null,null,{"$f":"'DN-1'!E7","v":0}]
[null,null,"    ZDN-2"]
[null,null,"ZAŁĄCZNIK DO DEKLARACJI NA PODATEK OD NIERUCHOMOŚCI"]
[null,null,"- DANE O PRZEDMIOTACH OPODATKOWANIA ZWOLNIONYCH Z OPODATKOWANIA"]
[null,null,null,null,null,null,null,null,null,null,null,null,null,null,null,null,null," 3. Nr załącznika"]
[null,null,null,null,null,null,null,null,null,null,null,null,null,null,null,null,null,1]
[]
[]
[null,null," A. DANE PODATNIKA WSKAZANEGO W CZĘŚCI C.1 DEKLARACJI DN-1"]
[null,null,null,null,null,null,null,null,"           * - dotyczy podatnika niebędącego osobą fizyczną            ** - dotyczy podatnika będącego osobą fizyczną"]
[null,null,null," 4. Nazwa pełna * / Nazwisko **",null,null,null,null,null,null,null," 5. Nazwa skrócona * / Pierwsze imię **"]
[null,null,null,{"$f":"'DN-1'!D47","v":0},null,null,null,null,null,null,null,{"$f":"'DN-1'!S47","v":0}]
[]
[null,null," B. DANE O POSZCZEGÓLNYCH PRZEDMIOTACH OPODATKOWANIA ZWOLNIONYCH Z OPODATKOWANIA"]
[null,null," B.1. GRUNTY"]
[null,null," Lp."," Położenie (adres, w tym dzielnica)",null,null,null,null,null,null," Nr księgi wieczystej",null,"Nr obrębu\n(arkusza\nmapy)2)",null," Nr działki","Powierzchnia\nw m2 / ha3)","Podstawa prawna\nzwolnienia4)",null,"Stawka podatku5)"]
[null,null,null,null,null,null,null,null,null,null," (zbioru dokumentów)"]
[null,null,null,"a",null,null,null,null,null,null,"b",null,"c",null,"d","e","f",null,"g"]
[null,null,1]
[null,null,2]
[null,null,3]
[null,null,4]
[null,null,5]
[null,null,6]
[null,null,7]
[null,null,8]
[null,null,"1)","    Numer PESEL wpisują podatnicy będący osobami fizycznymi objętymi rejestrem PESEL, nieprowadzący działalności gospodarczej lub niebędący zarejestrowanymi podatnikami podatku od towarów i usług."]
[null,null,null,"    Identyfikator podatkowy NIP wpisują pozostali podatnicy."]
[null,null,"2)","    Numer obrębu należy podać wraz z numerem arkusza mapy ewidencyjnej w przypadku, gdy działki numerowane są w ramach arkusza mapy."]
[null,null,"3)","    Powierzchnię w ha należy wykazać wyłącznie w przypadku gruntów pod wodami powierzchniowymi stojącymi lub wodami powierzchniowymi płynącymi jezior i zbiorników sztucznych (z dokładnością"]
[null,null,null,"    do czterech miejsc po przecinku)."]
[null,null,null,null,null,null,null,null,null,null,null,null,null,null,null,null,null," ZDN-2(1)",null,"1/2"]
[]
[]
[]
[null,null," WYPEŁNIĆ DUŻYMI, DRUKOWANYMI LITERAMI, CZARNYM LUB NIEBIESKIM KOLOREM."]
[]
[null,null," B.2. BUDYNKI LUB ICH CZĘŚCI"]
[null,null," Lp."," Położenie (adres, w tym dzielnica)",null,null,null,null,null,null," Nr księgi wieczystej",null,"Nr obrębu\n(arkusza\nmapy)2)",null," Nr działki","Powierzchnia","Podstawa prawna\nzwolnienia4)",null,"Stawka podatku5)"]
[null,null,null,null,null,null,null,null,null,null," (zbioru dokumentów)",null,null,null,null,"użytkowa w m2"]
[null,null,null,"a",null,null,null,null,null,null,"b",null,"c",null,"d","e","f",null,"g"]
[null,null,1]
[null,null,2]
[null,null,3]
[null,null,4]
[null,null,5]
[null,null,6]
[null,null,7]
[null,null,8]
[null,null," B.3. BUDOWLE LUB ICH CZĘŚCI ZWIĄZANE Z PROWADZENIEM DZIAŁALNOŚCI GOSPODARCZEJ"]
[null,null," Lp."," Nazwa budowli",null,null,null," Nr inwentarzowy",null," Położenie (adres, w tym dzielnica)",null,null,"Nr obrębu\n(arkusza\nmapy)2)",null," Nr działki"," Wartość w zł","Podstawa prawna\nzwolnienia4)",null,"Stawka podatku5)"]
[]
[null,null,null,6,null,null,null,"b",null,"c",null,null,"d",null,"e","f","g",null,"h"]
[null,null,1]
[null,null,2]
[null,null,3]
[null,null,4]
[null,null,5]
[null,null,6]
[null,null,7]
[null,null,8]
[null,null,"4)","    Należy podać jednostkę redakcyjną z ustawy lub uchwały rady gminy."]
[null,null,"5)","    Należy podać stawkę właściwą dla rodzaju przedmiotu opodatkowania zgodną z uchwałą rady gminy."]
[null,null," ZDN-2(1)",null,"2/2"]